Department family,Entity,Date,Expense Type,Expense area,Supplier,Transaction number,AP Amount (�)
Department of Health,NHS Sheffield CCG,31/03/2018,C&M-PMS Contract Value,PRC DELEGATED CO-COMMISSIONING,ABBEY LANE SURGERY,21222176,"22,188.36 "
Department of Health,NHS Sheffield CCG,31/03/2018,C&M-PMS DES Extended Hours Access,PRC DELEGATED CO-COMMISSIONING,ABBEY LANE SURGERY,21222176,"1,480.58 "
Department of Health,NHS Sheffield CCG,31/03/2018,C&M-PMS Funding Differential Review,PRC DELEGATED CO-COMMISSIONING,ABBEY LANE SURGERY,21222176,"1,105.08 "
Department of Health,NHS Sheffield CCG,31/03/2018,C&M-PMS Out of Hours Opt Outs,PRC DELEGATED CO-COMMISSIONING,ABBEY LANE SURGERY,21222176,9.63 
Department of Health,NHS Sheffield CCG,31/03/2018,C&M-PMS Prem Notional Rent,PRC DELEGATED CO-COMMISSIONING,ABBEY LANE SURGERY,21222176,"2,122.92 "
Department of Health,NHS Sheffield CCG,31/03/2018,C&M-PMS QOF Aspiration,PRC DELEGATED CO-COMMISSIONING,ABBEY LANE SURGERY,21222176,"3,210.12 "
Department of Health,NHS Sheffield CCG,31/03/2018,Cont Care-Physical Disab (<65),CHC ADULT FULLY FUNDED,ALPINE HEALTH CARE,21309952,"32,279.52 "
Department of Health,NHS Sheffield CCG,31/03/2018,Cont Care- Prior Year Payments,CHC ADULT FULLY FUNDED,CHC RETRO,21429792,"27,025.33 "
Department of Health,NHS Sheffield CCG,31/03/2018,Contract & Agency-Agency Int Mgr,BEREAVEMENT SERVICE,ATTAIN HEALTH MANAGEMENT SERVICES LTD,21454439,"36,252.01 "
Department of Health,NHS Sheffield CCG,31/03/2018,Hotel And Accomodation Costs,BEREAVEMENT SERVICE,ATTAIN HEALTH MANAGEMENT SERVICES LTD,21454439,"1,600.62 "
Department of Health,NHS Sheffield CCG,31/03/2018,Miscellaneous Expenditure (L9),BEREAVEMENT SERVICE,ATTAIN HEALTH MANAGEMENT SERVICES LTD,21454439,248.89 
Department of Health,NHS Sheffield CCG,31/03/2018,Rail Travel,BEREAVEMENT SERVICE,ATTAIN HEALTH MANAGEMENT SERVICES LTD,21454439,535.40 
Department of Health,NHS Sheffield CCG,31/03/2018,Taxi Travel,BEREAVEMENT SERVICE,ATTAIN HEALTH MANAGEMENT SERVICES LTD,21454439,270.14 
Department of Health,NHS Sheffield CCG,31/03/2018,Contract & Agency-Agency Int Mgr,BEREAVEMENT SERVICE,ATTAIN HEALTH MANAGEMENT SERVICES LTD,21454630,"26,745.00 "
Department of Health,NHS Sheffield CCG,31/03/2018,Hotel And Accomodation Costs,BEREAVEMENT SERVICE,ATTAIN HEALTH MANAGEMENT SERVICES LTD,21454630,"1,693.38 "
Department of Health,NHS Sheffield CCG,31/03/2018,Miscellaneous Expenditure (L9),BEREAVEMENT SERVICE,ATTAIN HEALTH MANAGEMENT SERVICES LTD,21454630,323.29 
Department of Health,NHS Sheffield CCG,31/03/2018,Rail Travel,BEREAVEMENT SERVICE,ATTAIN HEALTH MANAGEMENT SERVICES LTD,21454630,829.38 
Department of Health,NHS Sheffield CCG,31/03/2018,Contract & Agency-Agency Int Mgr,BEREAVEMENT SERVICE,ATTAIN HEALTH MANAGEMENT SERVICES LTD,21454638,"28,350.00 "
Department of Health,NHS Sheffield CCG,31/03/2018,Oth Travel Costs-Car Mileage,BEREAVEMENT SERVICE,ATTAIN HEALTH MANAGEMENT SERVICES LTD,21454638,439.02 
Department of Health,NHS Sheffield CCG,31/03/2018,Other Travel Costs - Car Parking,BEREAVEMENT SERVICE,ATTAIN HEALTH MANAGEMENT SERVICES LTD,21454638,4.92 
Department of Health,NHS Sheffield CCG,31/03/2018,Contract & Agency-Agency Int Mgr,BEREAVEMENT SERVICE,ATTAIN HEALTH MANAGEMENT SERVICES LTD,21454647,"37,683.00 "
Department of Health,NHS Sheffield CCG,31/03/2018,Hotel And Accomodation Costs,BEREAVEMENT SERVICE,ATTAIN HEALTH MANAGEMENT SERVICES LTD,21454647,876.66 
Department of Health,NHS Sheffield CCG,31/03/2018,Miscellaneous Expenditure (L9),BEREAVEMENT SERVICE,ATTAIN HEALTH MANAGEMENT SERVICES LTD,21454647,171.34 
Department of Health,NHS Sheffield CCG,31/03/2018,Rail Travel,BEREAVEMENT SERVICE,ATTAIN HEALTH MANAGEMENT SERVICES LTD,21454647,449.52 
Department of Health,NHS Sheffield CCG,31/03/2018,Taxi Travel,BEREAVEMENT SERVICE,ATTAIN HEALTH MANAGEMENT SERVICES LTD,21454647,302.30 
Department of Health,NHS Sheffield CCG,31/03/2018,C&M-PMS Contract Value,PRC DELEGATED CO-COMMISSIONING,AVENUE MEDICAL CENTRE SHEFFIELD,21222158,"53,143.93 "
Department of Health,NHS Sheffield CCG,31/03/2018,C&M-PMS DES Extended Hours Access,PRC DELEGATED CO-COMMISSIONING,AVENUE MEDICAL CENTRE SHEFFIELD,21222158,"3,516.90 "
Department of Health,NHS Sheffield CCG,31/03/2018,C&M-PMS Out of Hours Opt Outs,PRC DELEGATED CO-COMMISSIONING,AVENUE MEDICAL CENTRE SHEFFIELD,21222158,83.56 
Department of Health,NHS Sheffield CCG,31/03/2018,C&M-PMS Prem Notional Rent,PRC DELEGATED CO-COMMISSIONING,AVENUE MEDICAL CENTRE SHEFFIELD,21222158,"5,546.67 "
Department of Health,NHS Sheffield CCG,31/03/2018,C&M-PMS QOF Aspiration,PRC DELEGATED CO-COMMISSIONING,AVENUE MEDICAL CENTRE SHEFFIELD,21222158,"6,441.78 "
Department of Health,NHS Sheffield CCG,31/03/2018,Hcare Srv Rec Fdtn Trust-Contract Baseline,ACUTE COMMISSIONING,BARNSLEY HOSPITAL NHS FOUNDATION TRUST,21166168,"72,098.00 "
Department of Health,NHS Sheffield CCG,31/03/2018,C&M-PMS Contract Value,PRC DELEGATED CO-COMMISSIONING,BARNSLEY ROAD SURGERY,21222178,"21,419.62 "
Department of Health,NHS Sheffield CCG,31/03/2018,C&M-PMS DES Extended Hours Access,PRC DELEGATED CO-COMMISSIONING,BARNSLEY ROAD SURGERY,21222178,"1,272.05 "
Department of Health,NHS Sheffield CCG,31/03/2018,C&M-PMS Funding Differential Review,PRC DELEGATED CO-COMMISSIONING,BARNSLEY ROAD SURGERY,21222178,370.25 
Department of Health,NHS Sheffield CCG,31/03/2018,C&M-PMS PCO Seniority,PRC DELEGATED CO-COMMISSIONING,BARNSLEY ROAD SURGERY,21222178,"1,605.00 "
Department of Health,NHS Sheffield CCG,31/03/2018,C&M-PMS Prem Notional Rent,PRC DELEGATED CO-COMMISSIONING,BARNSLEY ROAD SURGERY,21222178,"2,652.17 "
Department of Health,NHS Sheffield CCG,31/03/2018,C&M-PMS QOF Aspiration,PRC DELEGATED CO-COMMISSIONING,BARNSLEY ROAD SURGERY,21222178,"2,500.90 "
Department of Health,NHS Sheffield CCG,31/03/2018,C&M-GMS DES Extended Hours Access,PRC DELEGATED CO-COMMISSIONING,BASLOW ROAD & SHOREHAM STREET SURGERIES,21472436,"5,949.38 "
Department of Health,NHS Sheffield CCG,31/03/2018,C&M-GMS Global Sum,PRC DELEGATED CO-COMMISSIONING,BASLOW ROAD & SHOREHAM STREET SURGERIES,21472436,"93,629.97 "
Department of Health,NHS Sheffield CCG,31/03/2018,C&M-GMS MPIG Correction Factor,PRC DELEGATED CO-COMMISSIONING,BASLOW ROAD & SHOREHAM STREET SURGERIES,21472436,438.64 
Department of Health,NHS Sheffield CCG,31/03/2018,C&M-GMS PCO Seniority,PRC DELEGATED CO-COMMISSIONING,BASLOW ROAD & SHOREHAM STREET SURGERIES,21472436,"2,451.47 "
Department of Health,NHS Sheffield CCG,31/03/2018,C&M-GMS Prem Notional Rent,PRC DELEGATED CO-COMMISSIONING,BASLOW ROAD & SHOREHAM STREET SURGERIES,21472436,"8,511.25 "
Department of Health,NHS Sheffield CCG,31/03/2018,C&M-GMS QOF Aspiration,PRC DELEGATED CO-COMMISSIONING,BASLOW ROAD & SHOREHAM STREET SURGERIES,21472436,"10,284.12 "
Department of Health,NHS Sheffield CCG,31/03/2018,Cont Care-Physical Disab (65+),CHC ADULT FULLY FUNDED,BC SHEFFIELD LTD,21146809,"35,793.31 "
Department of Health,NHS Sheffield CCG,31/03/2018,C&M-PMS Contract Value,PRC DELEGATED CO-COMMISSIONING,BIRLEY HEALTH CENTRE,21222180,"61,372.21 "
Department of Health,NHS Sheffield CCG,31/03/2018,C&M-PMS DES Extended Hours Access,PRC DELEGATED CO-COMMISSIONING,BIRLEY HEALTH CENTRE,21222180,"4,019.45 "
Department of Health,NHS Sheffield CCG,31/03/2018,C&M-PMS Funding Differential Review,PRC DELEGATED CO-COMMISSIONING,BIRLEY HEALTH CENTRE,21222180,"2,653.00 "
Department of Health,NHS Sheffield CCG,31/03/2018,C&M-PMS Out of Hours Opt Outs,PRC DELEGATED CO-COMMISSIONING,BIRLEY HEALTH CENTRE,21222180,12.15 
Department of Health,NHS Sheffield CCG,31/03/2018,C&M-PMS PCO Seniority,PRC DELEGATED CO-COMMISSIONING,BIRLEY HEALTH CENTRE,21222180,"5,610.07 "
Department of Health,NHS Sheffield CCG,31/03/2018,C&M-PMS Prem Notional Rent,PRC DELEGATED CO-COMMISSIONING,BIRLEY HEALTH CENTRE,21222180,"7,775.48 "
Department of Health,NHS Sheffield CCG,31/03/2018,C&M-PMS QOF Aspiration,PRC DELEGATED CO-COMMISSIONING,BIRLEY HEALTH CENTRE,21222180,"8,879.62 "
Department of Health,NHS Sheffield CCG,31/03/2018,Clinical&Medical-Independent Sector,ACUTE COMMISSIONING,BMI HEALTHCARE COLLECTIONS,21146766,"77,530.77 "
Department of Health,NHS Sheffield CCG,31/03/2018,External Consultancy Fees,CLINICAL LEADS,BRIGHTPURPOSE LTD,21119073,"33,025.00 "
Department of Health,NHS Sheffield CCG,31/03/2018,C&M-GMS Cost of Drugs -Prescribing,LOCAL ENHANCED SERVICES,BROOMHILL SURGERY,21472443,"3,012.41 "
Department of Health,NHS Sheffield CCG,31/03/2018,C&M-GMS DES Extended Hours Access,PRC DELEGATED CO-COMMISSIONING,BROOMHILL SURGERY,21472443,"4,512.03 "
Department of Health,NHS Sheffield CCG,31/03/2018,C&M-GMS Global Sum,PRC DELEGATED CO-COMMISSIONING,BROOMHILL SURGERY,21472443,"60,733.57 "
Department of Health,NHS Sheffield CCG,31/03/2018,C&M-GMS MPIG Correction Factor,PRC DELEGATED CO-COMMISSIONING,BROOMHILL SURGERY,21472443,753.01 
Department of Health,NHS Sheffield CCG,31/03/2018,C&M-GMS PCO Locum Adop/Pat/Mat,PRC DELEGATED CO-COMMISSIONING,BROOMHILL SURGERY,21472443,"7,115.35 "
Department of Health,NHS Sheffield CCG,31/03/2018,C&M-GMS PCO Seniority,PRC DELEGATED CO-COMMISSIONING,BROOMHILL SURGERY,21472443,"4,657.77 "
Department of Health,NHS Sheffield CCG,31/03/2018,C&M-GMS Prem Cost Rent,PRC DELEGATED CO-COMMISSIONING,BROOMHILL SURGERY,21472443,"3,380.00 "
Department of Health,NHS Sheffield CCG,31/03/2018,C&M-GMS Prem Notional Rent,PRC DELEGATED CO-COMMISSIONING,BROOMHILL SURGERY,21472443,"2,541.67 "
Department of Health,NHS Sheffield CCG,31/03/2018,C&M-GMS Prof Fees Prescribing,PRC DELEGATED CO-COMMISSIONING,BROOMHILL SURGERY,21472443,170.09 
Department of Health,NHS Sheffield CCG,31/03/2018,C&M-GMS QOF Aspiration,PRC DELEGATED CO-COMMISSIONING,BROOMHILL SURGERY,21472443,"6,516.86 "
Department of Health,NHS Sheffield CCG,31/03/2018,Legal / Prof Fees,CONTINUING HEALTHCARE ASSESSMENT & SUPPORT,BROWNE JACOBSON LLP,21309766,"24,180.50 "
Department of Health,NHS Sheffield CCG,31/03/2018,Legal / Prof Fees,CONTINUING HEALTHCARE ASSESSMENT & SUPPORT,BROWNE JACOBSON LLP,21454697,"27,087.70 "
Department of Health,NHS Sheffield CCG,31/03/2018,Legal / Prof Fees,CHC ADULT FULLY FUNDED,BROWNE JACOBSON LLP,21454697,354.50 
Department of Health,NHS Sheffield CCG,31/03/2018,Other professional fees,BEREAVEMENT SERVICE,BROWNE JACOBSON LLP,21454697,"4,277.04 "
Department of Health,NHS Sheffield CCG,31/03/2018,C&M-GMS IT Comm Servs -GP Practices,PRIMARY CARE IT,BT GLOBAL SERVICES,21543460,"29,197.85 "
Department of Health,NHS Sheffield CCG,31/03/2018,Computer Software/License,CORPORATE COSTS & SERVICES,BT GLOBAL SERVICES,21543460,846.24 
Department of Health,NHS Sheffield CCG,31/03/2018,Computer Software/License,PRIMARY CARE SUPPORT,BT GLOBAL SERVICES,21543460,211.56 
Department of Health,NHS Sheffield CCG,31/03/2018,C&M-GMS Cost of Drugs -Prescribing,LOCAL ENHANCED SERVICES,BUCHANAN ROAD SURGERY,21472439,154.69 
Department of Health,NHS Sheffield CCG,31/03/2018,C&M-GMS Global Sum,PRC DELEGATED CO-COMMISSIONING,BUCHANAN ROAD SURGERY,21472439,"34,478.60 "
Department of Health,NHS Sheffield CCG,31/03/2018,C&M-GMS MPIG Correction Factor,PRC DELEGATED CO-COMMISSIONING,BUCHANAN ROAD SURGERY,21472439,"1,965.76 "
Department of Health,NHS Sheffield CCG,31/03/2018,C&M-GMS PCO Locum Adop/Pat/Mat,PRC DELEGATED CO-COMMISSIONING,BUCHANAN ROAD SURGERY,21472439,"6,936.72 "
Department of Health,NHS Sheffield CCG,31/03/2018,C&M-GMS PCO Seniority,PRC DELEGATED CO-COMMISSIONING,BUCHANAN ROAD SURGERY,21472439,686.39 
Department of Health,NHS Sheffield CCG,31/03/2018,C&M-GMS Prem Notional Rent,PRC DELEGATED CO-COMMISSIONING,BUCHANAN ROAD SURGERY,21472439,"2,595.83 "
Department of Health,NHS Sheffield CCG,31/03/2018,C&M-GMS Prof Fees Prescribing,PRC DELEGATED CO-COMMISSIONING,BUCHANAN ROAD SURGERY,21472439,33.14 
Department of Health,NHS Sheffield CCG,31/03/2018,C&M-GMS QOF Aspiration,PRC DELEGATED CO-COMMISSIONING,BUCHANAN ROAD SURGERY,21472439,"4,538.47 "
Department of Health,NHS Sheffield CCG,31/03/2018,C&M-PMS Contract Value,PRC DELEGATED CO-COMMISSIONING,BURNCROSS SURGERY,21222182,"118,437.85 "
Department of Health,NHS Sheffield CCG,31/03/2018,C&M-PMS DES Extended Hours Access,PRC DELEGATED CO-COMMISSIONING,BURNCROSS SURGERY,21222182,"7,419.98 "
Department of Health,NHS Sheffield CCG,31/03/2018,C&M-PMS DES Learn Dsblty Hlth Chk,PRC DELEGATED CO-COMMISSIONING,BURNCROSS SURGERY,21222182,"8,552.00 "
Department of Health,NHS Sheffield CCG,31/03/2018,C&M-PMS Funding Differential Review,PRC DELEGATED CO-COMMISSIONING,BURNCROSS SURGERY,21222182,"1,648.42 "
Department of Health,NHS Sheffield CCG,31/03/2018,C&M-PMS PCO Seniority,PRC DELEGATED CO-COMMISSIONING,BURNCROSS SURGERY,21222182,"4,749.52 "
Department of Health,NHS Sheffield CCG,31/03/2018,C&M-PMS Prem Notional Rent,PRC DELEGATED CO-COMMISSIONING,BURNCROSS SURGERY,21222182,"14,058.33 "
Department of Health,NHS Sheffield CCG,31/03/2018,C&M-PMS QOF Aspiration,PRC DELEGATED CO-COMMISSIONING,BURNCROSS SURGERY,21222182,"14,930.79 "
Department of Health,NHS Sheffield CCG,31/03/2018,C&M-PMS Contract Value,PRC DELEGATED CO-COMMISSIONING,BURNGREAVE SURGERY,21222184,"54,107.28 "
Department of Health,NHS Sheffield CCG,31/03/2018,C&M-PMS DES Extended Hours Access,PRC DELEGATED CO-COMMISSIONING,BURNGREAVE SURGERY,21222184,"3,134.05 "
Department of Health,NHS Sheffield CCG,31/03/2018,C&M-PMS Funding Differential Review,PRC DELEGATED CO-COMMISSIONING,BURNGREAVE SURGERY,21222184,"1,353.08 "
Department of Health,NHS Sheffield CCG,31/03/2018,C&M-PMS Out of Hours Opt Outs,PRC DELEGATED CO-COMMISSIONING,BURNGREAVE SURGERY,21222184,17.72 
Department of Health,NHS Sheffield CCG,31/03/2018,C&M-PMS PCO Seniority,PRC DELEGATED CO-COMMISSIONING,BURNGREAVE SURGERY,21222184,"1,842.60 "
Department of Health,NHS Sheffield CCG,31/03/2018,C&M-PMS Prem Notional Rent,PRC DELEGATED CO-COMMISSIONING,BURNGREAVE SURGERY,21222184,"6,622.91 "
Department of Health,NHS Sheffield CCG,31/03/2018,C&M-PMS Prem Water Rates,PRC DELEGATED CO-COMMISSIONING,BURNGREAVE SURGERY,21222184,256.98 
Department of Health,NHS Sheffield CCG,31/03/2018,C&M-PMS QOF Aspiration,PRC DELEGATED CO-COMMISSIONING,BURNGREAVE SURGERY,21222184,"5,148.30 "
Department of Health,NHS Sheffield CCG,31/03/2018,NHS Recbles <1Yr- CHC Risk Pool Con,CHC ADULT FULLY FUNDED,CHC RETRO,21428770,"97,861.37 "
Department of Health,NHS Sheffield CCG,31/03/2018,C&M-GMS GP Statutory Levy,PRC DELEGATED CO-COMMISSIONING,CARTERKNOWLE & DORE MEDICAL PRACTICE,21472447,(369.60)
Department of Health,NHS Sheffield CCG,31/03/2018,C&M-GMS Voluntary Levy,PRC DELEGATED CO-COMMISSIONING,CARTERKNOWLE & DORE MEDICAL PRACTICE,21472447,(61.60)
Department of Health,NHS Sheffield CCG,31/03/2018,C&M-GMS Cost of Drugs -Prescribing,LOCAL ENHANCED SERVICES,CARTERKNOWLE & DORE MEDICAL PRACTICE,21472448,"5,574.17 "
Department of Health,NHS Sheffield CCG,31/03/2018,C&M-GMS DES Extended Hours Access,PRC DELEGATED CO-COMMISSIONING,CARTERKNOWLE & DORE MEDICAL PRACTICE,21472448,"5,872.90 "
Department of Health,NHS Sheffield CCG,31/03/2018,C&M-GMS Global Sum,PRC DELEGATED CO-COMMISSIONING,CARTERKNOWLE & DORE MEDICAL PRACTICE,21472448,"79,320.00 "
Department of Health,NHS Sheffield CCG,31/03/2018,C&M-GMS MPIG Correction Factor,PRC DELEGATED CO-COMMISSIONING,CARTERKNOWLE & DORE MEDICAL PRACTICE,21472448,"2,241.88 "
Department of Health,NHS Sheffield CCG,31/03/2018,C&M-GMS PCO Seniority,PRC DELEGATED CO-COMMISSIONING,CARTERKNOWLE & DORE MEDICAL PRACTICE,21472448,"3,364.21 "
Department of Health,NHS Sheffield CCG,31/03/2018,C&M-GMS Prem Notional Rent,PRC DELEGATED CO-COMMISSIONING,CARTERKNOWLE & DORE MEDICAL PRACTICE,21472448,"7,538.34 "
Department of Health,NHS Sheffield CCG,31/03/2018,C&M-GMS Prof Fees Prescribing,PRC DELEGATED CO-COMMISSIONING,CARTERKNOWLE & DORE MEDICAL PRACTICE,21472448,"1,055.90 "
Department of Health,NHS Sheffield CCG,31/03/2018,C&M-GMS QOF Aspiration,PRC DELEGATED CO-COMMISSIONING,CARTERKNOWLE & DORE MEDICAL PRACTICE,21472448,"10,317.62 "
Department of Health,NHS Sheffield CCG,31/03/2018,C&M-GMS Cost of Drugs -Prescribing,LOCAL ENHANCED SERVICES,CHARNOCK HEALTH PRIMARY CARE CENTRE,21472445,"2,184.09 "
Department of Health,NHS Sheffield CCG,31/03/2018,C&M-GMS DES Extended Hours Access,PRC DELEGATED CO-COMMISSIONING,CHARNOCK HEALTH PRIMARY CARE CENTRE,21472445,"2,472.38 "
Department of Health,NHS Sheffield CCG,31/03/2018,C&M-GMS Global Sum,PRC DELEGATED CO-COMMISSIONING,CHARNOCK HEALTH PRIMARY CARE CENTRE,21472445,"39,009.79 "
Department of Health,NHS Sheffield CCG,31/03/2018,C&M-GMS MPIG Correction Factor,PRC DELEGATED CO-COMMISSIONING,CHARNOCK HEALTH PRIMARY CARE CENTRE,21472445,619.87 
Department of Health,NHS Sheffield CCG,31/03/2018,C&M-GMS PCO Seniority,PRC DELEGATED CO-COMMISSIONING,CHARNOCK HEALTH PRIMARY CARE CENTRE,21472445,"2,010.04 "
Department of Health,NHS Sheffield CCG,31/03/2018,C&M-GMS Prem Notional Rent,PRC DELEGATED CO-COMMISSIONING,CHARNOCK HEALTH PRIMARY CARE CENTRE,21472445,305.00 
Department of Health,NHS Sheffield CCG,31/03/2018,C&M-GMS Prof Fees Prescribing,PRC DELEGATED CO-COMMISSIONING,CHARNOCK HEALTH PRIMARY CARE CENTRE,21472445,196.60 
Department of Health,NHS Sheffield CCG,31/03/2018,C&M-GMS QOF Aspiration,PRC DELEGATED CO-COMMISSIONING,CHARNOCK HEALTH PRIMARY CARE CENTRE,21472445,"4,669.55 "
Department of Health,NHS Sheffield CCG,31/03/2018,Hlthcre-Foundation Trsts,END OF LIFE,CHESTERFIELD ROYAL HOSPITAL NHS FOUNDATION TRUST,21203780,"38,400.00 "
Department of Health,NHS Sheffield CCG,31/03/2018,Hlthcre-Foundation Trsts,CLINICAL LEADS,CHESTERFIELD ROYAL HOSPITAL NHS FOUNDATION TRUST,21338386,"33,201.00 "
Department of Health,NHS Sheffield CCG,31/03/2018,Hcare Srv Rec Fdtn Trust-Non Contract,CLINICAL LEADS,CHESTERFIELD ROYAL HOSPITAL NHS FOUNDATION TRUST,21428403,"34,559.00 "
Department of Health,NHS Sheffield CCG,31/03/2018,Clinical&Medical-Independent Sector,ACUTE COMMISSIONING,CLAREMONT HOSPITAL,21226772,"78,290.00 "
Department of Health,NHS Sheffield CCG,31/03/2018,Clinical&Medical-Independent Sector,ACUTE COMMISSIONING,CLAREMONT HOSPITAL,21310133,"(26,448.00)"
Department of Health,NHS Sheffield CCG,31/03/2018,Computer Software/License,PROCUREMENT,COMMERCE DECISIONS LTD,21291546,"29,505.60 "
Department of Health,NHS Sheffield CCG,31/03/2018,Voids and Subsidies,RECHARGES NHS PROPERTY SERVICES LTD,COMMUNITY HEALTH PARTNERSHIPS LTD,21224728,"84,987.81 "
Department of Health,NHS Sheffield CCG,31/03/2018,Other Gen Supplies & Srv,BEREAVEMENT SERVICE,COMMUNITY HEALTH PARTNERSHIPS LTD,21334955,"66,000.00 "
Department of Health,NHS Sheffield CCG,31/03/2018,Voids and Subsidies,PRC DELEGATED CO-COMMISSIONING,COMMUNITY HEALTH PARTNERSHIPS LTD,21454722,"13,201.28 "
Department of Health,NHS Sheffield CCG,31/03/2018,Voids and Subsidies,RECHARGES NHS PROPERTY SERVICES LTD,COMMUNITY HEALTH PARTNERSHIPS LTD,21454722,"115,365.73 "
Department of Health,NHS Sheffield CCG,31/03/2018,Voids and Subsidies,PRC DELEGATED CO-COMMISSIONING,COMMUNITY HEALTH PARTNERSHIPS LTD,21454730,"13,201.28 "
Department of Health,NHS Sheffield CCG,31/03/2018,Voids and Subsidies,RECHARGES NHS PROPERTY SERVICES LTD,COMMUNITY HEALTH PARTNERSHIPS LTD,21454730,"115,364.83 "
Department of Health,NHS Sheffield CCG,31/03/2018,Voids and Subsidies,PRC DELEGATED CO-COMMISSIONING,COMMUNITY HEALTH PARTNERSHIPS LTD,21524575,"13,201.33 "
Department of Health,NHS Sheffield CCG,31/03/2018,Voids and Subsidies,RECHARGES NHS PROPERTY SERVICES LTD,COMMUNITY HEALTH PARTNERSHIPS LTD,21524575,"115,364.83 "
Department of Health,NHS Sheffield CCG,31/03/2018,Cont Care-Funded Nursing Care Allow,FUNDED NURSING CARE,COUNTRY COURT CARE LTD,21310008,"34,465.40 "
Department of Health,NHS Sheffield CCG,31/03/2018,C&M-GMS Cost of Drugs -Prescribing,LOCAL ENHANCED SERVICES,CROOKES PRACTICE,21472452,"2,015.97 "
Department of Health,NHS Sheffield CCG,31/03/2018,C&M-GMS DES Extended Hours Access,PRC DELEGATED CO-COMMISSIONING,CROOKES PRACTICE,21472452,"3,688.38 "
Department of Health,NHS Sheffield CCG,31/03/2018,C&M-GMS Global Sum,PRC DELEGATED CO-COMMISSIONING,CROOKES PRACTICE,21472452,"47,331.53 "
Department of Health,NHS Sheffield CCG,31/03/2018,C&M-GMS MPIG Correction Factor,PRC DELEGATED CO-COMMISSIONING,CROOKES PRACTICE,21472452,"2,318.88 "
Department of Health,NHS Sheffield CCG,31/03/2018,C&M-GMS PCO Seniority,PRC DELEGATED CO-COMMISSIONING,CROOKES PRACTICE,21472452,"1,190.15 "
Department of Health,NHS Sheffield CCG,31/03/2018,C&M-GMS Prem Notional Rent,PRC DELEGATED CO-COMMISSIONING,CROOKES PRACTICE,21472452,"3,752.42 "
Department of Health,NHS Sheffield CCG,31/03/2018,C&M-GMS Prem Water Rates,PRC DELEGATED CO-COMMISSIONING,CROOKES PRACTICE,21472452,153.97 
Department of Health,NHS Sheffield CCG,31/03/2018,C&M-GMS Prof Fees Prescribing,PRC DELEGATED CO-COMMISSIONING,CROOKES PRACTICE,21472452,357.86 
Department of Health,NHS Sheffield CCG,31/03/2018,C&M-GMS QOF Aspiration,PRC DELEGATED CO-COMMISSIONING,CROOKES PRACTICE,21472452,"4,702.76 "
Department of Health,NHS Sheffield CCG,31/03/2018,C&M-PMS Contract Value,PRC DELEGATED CO-COMMISSIONING,DEEPCAR MEDICAL CENTRE,21222188,"39,013.75 "
Department of Health,NHS Sheffield CCG,31/03/2018,C&M-PMS DES Extended Hours Access,PRC DELEGATED CO-COMMISSIONING,DEEPCAR MEDICAL CENTRE,21222188,"2,444.35 "
Department of Health,NHS Sheffield CCG,31/03/2018,C&M-PMS Funding Differential Review,PRC DELEGATED CO-COMMISSIONING,DEEPCAR MEDICAL CENTRE,21222188,306.08 
Department of Health,NHS Sheffield CCG,31/03/2018,C&M-PMS PCO Seniority,PRC DELEGATED CO-COMMISSIONING,DEEPCAR MEDICAL CENTRE,21222188,"1,528.42 "
Department of Health,NHS Sheffield CCG,31/03/2018,C&M-PMS Prem Healthcentre Rent,PRC DELEGATED CO-COMMISSIONING,DEEPCAR MEDICAL CENTRE,21222188,"27,983.03 "
Department of Health,NHS Sheffield CCG,31/03/2018,C&M-PMS QOF Aspiration,PRC DELEGATED CO-COMMISSIONING,DEEPCAR MEDICAL CENTRE,21222188,"4,452.12 "
Department of Health,NHS Sheffield CCG,31/03/2018,Other professional fees,BEREAVEMENT SERVICE,DELOITTE MCS LTD,21524268,"250,992.00 "
Department of Health,NHS Sheffield CCG,31/03/2018,Other professional fees,BEREAVEMENT SERVICE,DELOITTE MCS LTD,21524304,"613,872.00 "
Department of Health,NHS Sheffield CCG,31/03/2018,C&M-GMS Cost of Drugs -Prescribing,LOCAL ENHANCED SERVICES,DEVONSHIRE GREEN MEDICAL CENTRE,21472457,985.37 
Department of Health,NHS Sheffield CCG,31/03/2018,C&M-GMS Global Sum,PRC DELEGATED CO-COMMISSIONING,DEVONSHIRE GREEN MEDICAL CENTRE,21472457,"42,892.02 "
Department of Health,NHS Sheffield CCG,31/03/2018,C&M-GMS MPIG Correction Factor,PRC DELEGATED CO-COMMISSIONING,DEVONSHIRE GREEN MEDICAL CENTRE,21472457,"4,846.80 "
Department of Health,NHS Sheffield CCG,31/03/2018,C&M-GMS PCO Seniority,PRC DELEGATED CO-COMMISSIONING,DEVONSHIRE GREEN MEDICAL CENTRE,21472457,"4,423.48 "
Department of Health,NHS Sheffield CCG,31/03/2018,C&M-GMS Prem Notional Rent,PRC DELEGATED CO-COMMISSIONING,DEVONSHIRE GREEN MEDICAL CENTRE,21472457,"5,987.50 "
Department of Health,NHS Sheffield CCG,31/03/2018,C&M-GMS Prem Rates,PRC DELEGATED CO-COMMISSIONING,DEVONSHIRE GREEN MEDICAL CENTRE,21472457,"7,827.30 "
Department of Health,NHS Sheffield CCG,31/03/2018,C&M-GMS Prof Fees Prescribing,PRC DELEGATED CO-COMMISSIONING,DEVONSHIRE GREEN MEDICAL CENTRE,21472457,212.07 
Department of Health,NHS Sheffield CCG,31/03/2018,C&M-GMS QOF Aspiration,PRC DELEGATED CO-COMMISSIONING,DEVONSHIRE GREEN MEDICAL CENTRE,21472457,"5,205.83 "
Department of Health,NHS Sheffield CCG,31/03/2018,Hcare Srv Rec Fdtn Trust-Contract Baseline,ACUTE COMMISSIONING,DONCASTER AND BASSETLAW HOSPITALS NHS FOUNDATION TRUST,21203777,"34,679.00 "
Department of Health,NHS Sheffield CCG,31/03/2018,Computer Software/License,END OF LIFE,DONCASTER AND BASSETLAW HOSPITALS NHS FOUNDATION TRUST,21250244,"38,400.00 "
Department of Health,NHS Sheffield CCG,31/03/2018,Other Gen Supplies & Srv,BEREAVEMENT SERVICE,DONCASTER AND BASSETLAW HOSPITALS NHS FOUNDATION TRUST,21543478,"25,000.00 "
Department of Health,NHS Sheffield CCG,31/03/2018,C&M-PMS Contract Value,PRC DELEGATED CO-COMMISSIONING,DOVERCOURT SURGERY,21222190,"69,002.09 "
Department of Health,NHS Sheffield CCG,31/03/2018,C&M-PMS DES Extended Hours Access,PRC DELEGATED CO-COMMISSIONING,DOVERCOURT SURGERY,21222190,"3,876.95 "
Department of Health,NHS Sheffield CCG,31/03/2018,C&M-PMS Funding Differential Review,PRC DELEGATED CO-COMMISSIONING,DOVERCOURT SURGERY,21222190,"3,616.08 "
Department of Health,NHS Sheffield CCG,31/03/2018,C&M-PMS PCO Seniority,PRC DELEGATED CO-COMMISSIONING,DOVERCOURT SURGERY,21222190,"1,842.60 "
Department of Health,NHS Sheffield CCG,31/03/2018,C&M-PMS Prem Actual Rent,PRC DELEGATED CO-COMMISSIONING,DOVERCOURT SURGERY,21222190,"12,400.00 "
Department of Health,NHS Sheffield CCG,31/03/2018,C&M-PMS Prem Notional Rent,PRC DELEGATED CO-COMMISSIONING,DOVERCOURT SURGERY,21222190,"1,708.34 "
Department of Health,NHS Sheffield CCG,31/03/2018,C&M-PMS QOF Aspiration,PRC DELEGATED CO-COMMISSIONING,DOVERCOURT SURGERY,21222190,"7,505.03 "
Department of Health,NHS Sheffield CCG,31/03/2018,C&M-PMS Contract Value,PRC DELEGATED CO-COMMISSIONING,DR MEHROTRA & PARTNER,21222192,"27,162.37 "
Department of Health,NHS Sheffield CCG,31/03/2018,C&M-PMS DES Extended Hours Access,PRC DELEGATED CO-COMMISSIONING,DR MEHROTRA & PARTNER,21222192,"1,620.23 "
Department of Health,NHS Sheffield CCG,31/03/2018,C&M-PMS DES Learn Dsblty Hlth Chk,PRC DELEGATED CO-COMMISSIONING,DR MEHROTRA & PARTNER,21222192,980.00 
Department of Health,NHS Sheffield CCG,31/03/2018,C&M-PMS Funding Differential Review,PRC DELEGATED CO-COMMISSIONING,DR MEHROTRA & PARTNER,21222192,885.92 
Department of Health,NHS Sheffield CCG,31/03/2018,C&M-PMS PCO Seniority,PRC DELEGATED CO-COMMISSIONING,DR MEHROTRA & PARTNER,21222192,637.24 
Department of Health,NHS Sheffield CCG,31/03/2018,C&M-PMS Prem Notional Rent,PRC DELEGATED CO-COMMISSIONING,DR MEHROTRA & PARTNER,21222192,"5,157.33 "
Department of Health,NHS Sheffield CCG,31/03/2018,C&M-PMS QOF Aspiration,PRC DELEGATED CO-COMMISSIONING,DR MEHROTRA & PARTNER,21222192,"3,389.93 "
Department of Health,NHS Sheffield CCG,31/03/2018,C&M-PMS Contract Value,PRC DELEGATED CO-COMMISSIONING,DR MILNER & PARTNERS,21222194,"72,194.42 "
Department of Health,NHS Sheffield CCG,31/03/2018,C&M-PMS DES Extended Hours Access,PRC DELEGATED CO-COMMISSIONING,DR MILNER & PARTNERS,21222194,"4,991.30 "
Department of Health,NHS Sheffield CCG,31/03/2018,C&M-PMS Funding Differential Review,PRC DELEGATED CO-COMMISSIONING,DR MILNER & PARTNERS,21222194,"4,581.42 "
Department of Health,NHS Sheffield CCG,31/03/2018,C&M-PMS Out of Hours Opt Outs,PRC DELEGATED CO-COMMISSIONING,DR MILNER & PARTNERS,21222194,3.82 
Department of Health,NHS Sheffield CCG,31/03/2018,C&M-PMS PCO Seniority,PRC DELEGATED CO-COMMISSIONING,DR MILNER & PARTNERS,21222194,"1,752.50 "
Department of Health,NHS Sheffield CCG,31/03/2018,C&M-PMS Prem Actual Rent,PRC DELEGATED CO-COMMISSIONING,DR MILNER & PARTNERS,21222194,"11,382.00 "
Department of Health,NHS Sheffield CCG,31/03/2018,C&M-PMS Prem Notional Rent,PRC DELEGATED CO-COMMISSIONING,DR MILNER & PARTNERS,21222194,"4,462.41 "
Department of Health,NHS Sheffield CCG,31/03/2018,C&M-PMS Prem Rates,PRC DELEGATED CO-COMMISSIONING,DR MILNER & PARTNERS,21222194,"1,265.63 "
Department of Health,NHS Sheffield CCG,31/03/2018,C&M-PMS QOF Aspiration,PRC DELEGATED CO-COMMISSIONING,DR MILNER & PARTNERS,21222194,"7,385.62 "
Department of Health,NHS Sheffield CCG,31/03/2018,C&M-GMS Cost of Drugs -Prescribing,LOCAL ENHANCED SERVICES,DUKE MEDICAL CENTRE,21472465,"1,862.31 "
Department of Health,NHS Sheffield CCG,31/03/2018,C&M-GMS DES Extended Hours Access,PRC DELEGATED CO-COMMISSIONING,DUKE MEDICAL CENTRE,21472465,"3,191.05 "
Department of Health,NHS Sheffield CCG,31/03/2018,C&M-GMS Global Sum,PRC DELEGATED CO-COMMISSIONING,DUKE MEDICAL CENTRE,21472465,"54,227.95 "
Department of Health,NHS Sheffield CCG,31/03/2018,C&M-GMS MPIG Correction Factor,PRC DELEGATED CO-COMMISSIONING,DUKE MEDICAL CENTRE,21472465,918.76 
Department of Health,NHS Sheffield CCG,31/03/2018,C&M-GMS PCO Seniority,PRC DELEGATED CO-COMMISSIONING,DUKE MEDICAL CENTRE,21472465,"1,723.06 "
Department of Health,NHS Sheffield CCG,31/03/2018,C&M-GMS Prem Notional Rent,PRC DELEGATED CO-COMMISSIONING,DUKE MEDICAL CENTRE,21472465,"5,721.67 "
Department of Health,NHS Sheffield CCG,31/03/2018,C&M-GMS Prem Water Rates,PRC DELEGATED CO-COMMISSIONING,DUKE MEDICAL CENTRE,21472465,260.30 
Department of Health,NHS Sheffield CCG,31/03/2018,C&M-GMS Prof Fees Prescribing,PRC DELEGATED CO-COMMISSIONING,DUKE MEDICAL CENTRE,21472465,386.58 
Department of Health,NHS Sheffield CCG,31/03/2018,C&M-GMS QOF Aspiration,PRC DELEGATED CO-COMMISSIONING,DUKE MEDICAL CENTRE,21472465,"5,346.37 "
Department of Health,NHS Sheffield CCG,31/03/2018,C&M-PMS Contract Value,PRC DELEGATED CO-COMMISSIONING,DUNNINC ROAD SURGERY,21222196,"23,292.54 "
Department of Health,NHS Sheffield CCG,31/03/2018,C&M-PMS DES Extended Hours Access,PRC DELEGATED CO-COMMISSIONING,DUNNINC ROAD SURGERY,21222196,"1,437.35 "
Department of Health,NHS Sheffield CCG,31/03/2018,C&M-PMS Funding Differential Review,PRC DELEGATED CO-COMMISSIONING,DUNNINC ROAD SURGERY,21222196,"1,218.67 "
Department of Health,NHS Sheffield CCG,31/03/2018,C&M-PMS PCO Seniority,PRC DELEGATED CO-COMMISSIONING,DUNNINC ROAD SURGERY,21222196,"2,116.25 "
Department of Health,NHS Sheffield CCG,31/03/2018,C&M-PMS Prem Actual Rent,PRC DELEGATED CO-COMMISSIONING,DUNNINC ROAD SURGERY,21222196,54.38 
Department of Health,NHS Sheffield CCG,31/03/2018,C&M-PMS Prem Notional Rent,PRC DELEGATED CO-COMMISSIONING,DUNNINC ROAD SURGERY,21222196,"1,664.59 "
Department of Health,NHS Sheffield CCG,31/03/2018,C&M-PMS QOF Aspiration,PRC DELEGATED CO-COMMISSIONING,DUNNINC ROAD SURGERY,21222196,"2,548.20 "
Department of Health,NHS Sheffield CCG,31/03/2018,C&M-PMS Contract Value,PRC DELEGATED CO-COMMISSIONING,DYKES HALL MEDICAL CENTRE,21222197,"70,491.01 "
Department of Health,NHS Sheffield CCG,31/03/2018,C&M-PMS DES Extended Hours Access,PRC DELEGATED CO-COMMISSIONING,DYKES HALL MEDICAL CENTRE,21222197,"4,609.40 "
Department of Health,NHS Sheffield CCG,31/03/2018,C&M-PMS Funding Differential Review,PRC DELEGATED CO-COMMISSIONING,DYKES HALL MEDICAL CENTRE,21222197,199.75 
Department of Health,NHS Sheffield CCG,31/03/2018,C&M-PMS Out of Hours Opt Outs,PRC DELEGATED CO-COMMISSIONING,DYKES HALL MEDICAL CENTRE,21222197,20.43 
Department of Health,NHS Sheffield CCG,31/03/2018,C&M-PMS PCO Seniority,PRC DELEGATED CO-COMMISSIONING,DYKES HALL MEDICAL CENTRE,21222197,"2,790.47 "
Department of Health,NHS Sheffield CCG,31/03/2018,C&M-PMS Prem Notional Rent,PRC DELEGATED CO-COMMISSIONING,DYKES HALL MEDICAL CENTRE,21222197,"5,300.83 "
Department of Health,NHS Sheffield CCG,31/03/2018,C&M-PMS QOF Aspiration,PRC DELEGATED CO-COMMISSIONING,DYKES HALL MEDICAL CENTRE,21222197,"8,863.43 "
Department of Health,NHS Sheffield CCG,31/03/2018,C&M-PMS Contract Value,PRC DELEGATED CO-COMMISSIONING,DYKES HALL MEDICAL CENTRE,21245446,(412.70)
Department of Health,NHS Sheffield CCG,31/03/2018,C&M-PMS GP Statutory Levy,PRC DELEGATED CO-COMMISSIONING,DYKES HALL MEDICAL CENTRE,21245446,(291.66)
Department of Health,NHS Sheffield CCG,31/03/2018,C&M-PMS Out of Hours Opt Outs,PRC DELEGATED CO-COMMISSIONING,DYKES HALL MEDICAL CENTRE,21245446,"(3,326.45)"
Department of Health,NHS Sheffield CCG,31/03/2018,C&M-PMS Voluntary Levy,PRC DELEGATED CO-COMMISSIONING,DYKES HALL MEDICAL CENTRE,21245446,(48.61)
Department of Health,NHS Sheffield CCG,31/03/2018,C&M-PMS Contract Value,PRC DELEGATED CO-COMMISSIONING,EAST BANK MEDICAL CENTRE,21222199,"45,118.80 "
Department of Health,NHS Sheffield CCG,31/03/2018,C&M-PMS DES Extended Hours Access,PRC DELEGATED CO-COMMISSIONING,EAST BANK MEDICAL CENTRE,21222199,"2,649.08 "
Department of Health,NHS Sheffield CCG,31/03/2018,C&M-PMS Funding Differential Review,PRC DELEGATED CO-COMMISSIONING,EAST BANK MEDICAL CENTRE,21222199,"1,588.17 "
Department of Health,NHS Sheffield CCG,31/03/2018,C&M-PMS Out of Hours Opt Outs,PRC DELEGATED CO-COMMISSIONING,EAST BANK MEDICAL CENTRE,21222199,34.49 
Department of Health,NHS Sheffield CCG,31/03/2018,C&M-PMS PCO Seniority,PRC DELEGATED CO-COMMISSIONING,EAST BANK MEDICAL CENTRE,21222199,"1,359.96 "
Department of Health,NHS Sheffield CCG,31/03/2018,C&M-PMS Prem Notional Rent,PRC DELEGATED CO-COMMISSIONING,EAST BANK MEDICAL CENTRE,21222199,"10,466.67 "
Department of Health,NHS Sheffield CCG,31/03/2018,C&M-PMS QOF Aspiration,PRC DELEGATED CO-COMMISSIONING,EAST BANK MEDICAL CENTRE,21222199,"5,086.87 "
Department of Health,NHS Sheffield CCG,31/03/2018,C&M-GMS Cost of Drugs -Prescribing,LOCAL ENHANCED SERVICES,ECCLESFIELD GROUP PRACTICE,21472461,"2,259.12 "
Department of Health,NHS Sheffield CCG,31/03/2018,C&M-GMS DES Extended Hours Access,PRC DELEGATED CO-COMMISSIONING,ECCLESFIELD GROUP PRACTICE,21472461,"3,814.73 "
Department of Health,NHS Sheffield CCG,31/03/2018,C&M-GMS Global Sum,PRC DELEGATED CO-COMMISSIONING,ECCLESFIELD GROUP PRACTICE,21472461,"63,478.15 "
Department of Health,NHS Sheffield CCG,31/03/2018,C&M-GMS PCO Seniority,PRC DELEGATED CO-COMMISSIONING,ECCLESFIELD GROUP PRACTICE,21472461,"3,609.70 "
Department of Health,NHS Sheffield CCG,31/03/2018,C&M-GMS Prem Notional Rent,PRC DELEGATED CO-COMMISSIONING,ECCLESFIELD GROUP PRACTICE,21472461,"6,805.42 "
Department of Health,NHS Sheffield CCG,31/03/2018,C&M-GMS Prof Fees Prescribing,PRC DELEGATED CO-COMMISSIONING,ECCLESFIELD GROUP PRACTICE,21472461,287.16 
Department of Health,NHS Sheffield CCG,31/03/2018,C&M-GMS QOF Aspiration,PRC DELEGATED CO-COMMISSIONING,ECCLESFIELD GROUP PRACTICE,21472461,"10,399.72 "
Department of Health,NHS Sheffield CCG,31/03/2018,C&M-GMS Cost of Drugs -Prescribing,LOCAL ENHANCED SERVICES,ELM LANE SURGERY,21472463,"1,274.81 "
Department of Health,NHS Sheffield CCG,31/03/2018,C&M-GMS Global Sum,PRC DELEGATED CO-COMMISSIONING,ELM LANE SURGERY,21472463,"38,022.53 "
Department of Health,NHS Sheffield CCG,31/03/2018,C&M-GMS MPIG Correction Factor,PRC DELEGATED CO-COMMISSIONING,ELM LANE SURGERY,21472463,"1,257.79 "
Department of Health,NHS Sheffield CCG,31/03/2018,C&M-GMS PCO Seniority,PRC DELEGATED CO-COMMISSIONING,ELM LANE SURGERY,21472463,"1,477.36 "
Department of Health,NHS Sheffield CCG,31/03/2018,C&M-GMS Prem Notional Rent,PRC DELEGATED CO-COMMISSIONING,ELM LANE SURGERY,21472463,"5,168.50 "
Department of Health,NHS Sheffield CCG,31/03/2018,C&M-GMS Prof Fees Prescribing,PRC DELEGATED CO-COMMISSIONING,ELM LANE SURGERY,21472463,170.09 
Department of Health,NHS Sheffield CCG,31/03/2018,C&M-GMS QOF Aspiration,PRC DELEGATED CO-COMMISSIONING,ELM LANE SURGERY,21472463,"4,880.72 "
Department of Health,NHS Sheffield CCG,31/03/2018,Cont Care-Physical Disab (<65),CHC ADULT FULLY FUNDED,FAIRWINDS HEALTH CARE LTD,21226825,"45,486.03 "
Department of Health,NHS Sheffield CCG,31/03/2018,C&M-PMS Contract Value,PRC DELEGATED CO-COMMISSIONING,FALKLAND HOUSE,21222203,"26,591.60 "
Department of Health,NHS Sheffield CCG,31/03/2018,C&M-PMS DES Extended Hours Access,PRC DELEGATED CO-COMMISSIONING,FALKLAND HOUSE,21222203,"1,903.80 "
Department of Health,NHS Sheffield CCG,31/03/2018,C&M-PMS Funding Differential Review,PRC DELEGATED CO-COMMISSIONING,FALKLAND HOUSE,21222203,"1,255.92 "
Department of Health,NHS Sheffield CCG,31/03/2018,C&M-PMS Out of Hours Opt Outs,PRC DELEGATED CO-COMMISSIONING,FALKLAND HOUSE,21222203,88.40 
Department of Health,NHS Sheffield CCG,31/03/2018,C&M-PMS PCO Seniority,PRC DELEGATED CO-COMMISSIONING,FALKLAND HOUSE,21222203,"1,121.87 "
Department of Health,NHS Sheffield CCG,31/03/2018,C&M-PMS Prem Notional Rent,PRC DELEGATED CO-COMMISSIONING,FALKLAND HOUSE,21222203,"1,802.08 "
Department of Health,NHS Sheffield CCG,31/03/2018,C&M-PMS QOF Aspiration,PRC DELEGATED CO-COMMISSIONING,FALKLAND HOUSE,21222203,"3,036.47 "
Department of Health,NHS Sheffield CCG,31/03/2018,C&M-GMS Cost of Drugs -Prescribing,LOCAL ENHANCED SERVICES,FAR LANE MEDICAL CENTRE,21472472,595.69 
Department of Health,NHS Sheffield CCG,31/03/2018,C&M-GMS Global Sum,PRC DELEGATED CO-COMMISSIONING,FAR LANE MEDICAL CENTRE,21472472,"52,995.22 "
Department of Health,NHS Sheffield CCG,31/03/2018,C&M-GMS PCO Seniority,PRC DELEGATED CO-COMMISSIONING,FAR LANE MEDICAL CENTRE,21472472,"5,015.57 "
Department of Health,NHS Sheffield CCG,31/03/2018,C&M-GMS Prem Notional Rent,PRC DELEGATED CO-COMMISSIONING,FAR LANE MEDICAL CENTRE,21472472,"3,462.50 "
Department of Health,NHS Sheffield CCG,31/03/2018,C&M-GMS Prof Fees Prescribing,PRC DELEGATED CO-COMMISSIONING,FAR LANE MEDICAL CENTRE,21472472,185.56 
Department of Health,NHS Sheffield CCG,31/03/2018,C&M-GMS QOF Aspiration,PRC DELEGATED CO-COMMISSIONING,FAR LANE MEDICAL CENTRE,21472472,"6,224.50 "
Department of Health,NHS Sheffield CCG,31/03/2018,C&M-PMS Contract Value,PRC DELEGATED CO-COMMISSIONING,FIRTH PARK SURGERY,21222200,(195.61)
Department of Health,NHS Sheffield CCG,31/03/2018,C&M-PMS GP Statutory Levy,PRC DELEGATED CO-COMMISSIONING,FIRTH PARK SURGERY,21222200,(294.96)
Department of Health,NHS Sheffield CCG,31/03/2018,C&M-PMS Out of Hours Opt Outs,PRC DELEGATED CO-COMMISSIONING,FIRTH PARK SURGERY,21222200,"(3,453.48)"
Department of Health,NHS Sheffield CCG,31/03/2018,C&M-PMS Voluntary Levy,PRC DELEGATED CO-COMMISSIONING,FIRTH PARK SURGERY,21222200,(49.16)
Department of Health,NHS Sheffield CCG,31/03/2018,C&M-PMS Contract Value,PRC DELEGATED CO-COMMISSIONING,FIRTH PARK SURGERY,21222201,"70,644.61 "
Department of Health,NHS Sheffield CCG,31/03/2018,C&M-PMS DES Extended Hours Access,PRC DELEGATED CO-COMMISSIONING,FIRTH PARK SURGERY,21222201,"4,628.40 "
Department of Health,NHS Sheffield CCG,31/03/2018,C&M-PMS Out of Hours Opt Outs,PRC DELEGATED CO-COMMISSIONING,FIRTH PARK SURGERY,21222201,9.68 
Department of Health,NHS Sheffield CCG,31/03/2018,C&M-PMS PCO Seniority,PRC DELEGATED CO-COMMISSIONING,FIRTH PARK SURGERY,21222201,"3,690.43 "
Department of Health,NHS Sheffield CCG,31/03/2018,C&M-PMS Prem Notional Rent,PRC DELEGATED CO-COMMISSIONING,FIRTH PARK SURGERY,21222201,"4,500.00 "
Department of Health,NHS Sheffield CCG,31/03/2018,C&M-PMS Prem Rates,PRC DELEGATED CO-COMMISSIONING,FIRTH PARK SURGERY,21222201,"1,291.00 "
Department of Health,NHS Sheffield CCG,31/03/2018,C&M-PMS QOF Aspiration,PRC DELEGATED CO-COMMISSIONING,FIRTH PARK SURGERY,21222201,"8,194.20 "
Department of Health,NHS Sheffield CCG,31/03/2018,C&M-GMS Cost of Drugs -Prescribing,LOCAL ENHANCED SERVICES,FLOWERS HEALTH CENTRE,21472545,473.40 
Department of Health,NHS Sheffield CCG,31/03/2018,C&M-GMS Global Sum,PRC DELEGATED CO-COMMISSIONING,FLOWERS HEALTH CENTRE,21472545,"33,765.84 "
Department of Health,NHS Sheffield CCG,31/03/2018,C&M-GMS MPIG Correction Factor,PRC DELEGATED CO-COMMISSIONING,FLOWERS HEALTH CENTRE,21472545,"2,214.46 "
Department of Health,NHS Sheffield CCG,31/03/2018,C&M-GMS PCO Seniority,PRC DELEGATED CO-COMMISSIONING,FLOWERS HEALTH CENTRE,21472545,"1,477.36 "
Department of Health,NHS Sheffield CCG,31/03/2018,C&M-GMS Prem Healthcentre Rent,PRC DELEGATED CO-COMMISSIONING,FLOWERS HEALTH CENTRE,21472545,"33,513.30 "
Department of Health,NHS Sheffield CCG,31/03/2018,C&M-GMS Prof Fees Prescribing,PRC DELEGATED CO-COMMISSIONING,FLOWERS HEALTH CENTRE,21472545,130.34 
Department of Health,NHS Sheffield CCG,31/03/2018,C&M-GMS QOF Aspiration,PRC DELEGATED CO-COMMISSIONING,FLOWERS HEALTH CENTRE,21472545,"4,334.56 "
Department of Health,NHS Sheffield CCG,31/03/2018,C&M-GMS Practice Transformational Support,LOCAL ENHANCED SERVICES,FOUNDRY MEDICAL GROUP,21524244,"30,000.00 "
Department of Health,NHS Sheffield CCG,31/03/2018,C&M-PMS Contract Value,PRC DELEGATED CO-COMMISSIONING,FOXHILL MEDICAL CENTRE SHEFFIELD,21245452,"50,364.37 "
Department of Health,NHS Sheffield CCG,31/03/2018,C&M-PMS DES Extended Hours Access,PRC DELEGATED CO-COMMISSIONING,FOXHILL MEDICAL CENTRE SHEFFIELD,21245452,"2,956.88 "
Department of Health,NHS Sheffield CCG,31/03/2018,C&M-PMS Funding Differential Review,PRC DELEGATED CO-COMMISSIONING,FOXHILL MEDICAL CENTRE SHEFFIELD,21245452,"1,451.25 "
Department of Health,NHS Sheffield CCG,31/03/2018,C&M-PMS Out of Hours Opt Outs,PRC DELEGATED CO-COMMISSIONING,FOXHILL MEDICAL CENTRE SHEFFIELD,21245452,23.73 
Department of Health,NHS Sheffield CCG,31/03/2018,C&M-PMS PCO Locum Sickness,PRC DELEGATED CO-COMMISSIONING,FOXHILL MEDICAL CENTRE SHEFFIELD,21245452,"2,263.48 "
Department of Health,NHS Sheffield CCG,31/03/2018,C&M-PMS PCO Seniority,PRC DELEGATED CO-COMMISSIONING,FOXHILL MEDICAL CENTRE SHEFFIELD,21245452,"3,505.33 "
Department of Health,NHS Sheffield CCG,31/03/2018,C&M-PMS Prem Healthcentre Rent,PRC DELEGATED CO-COMMISSIONING,FOXHILL MEDICAL CENTRE SHEFFIELD,21245452,"46,118.26 "
Department of Health,NHS Sheffield CCG,31/03/2018,C&M-PMS QOF Aspiration,PRC DELEGATED CO-COMMISSIONING,FOXHILL MEDICAL CENTRE SHEFFIELD,21245452,"5,736.75 "
Department of Health,NHS Sheffield CCG,31/03/2018,C&M-PMS Contract Value,PRC DELEGATED CO-COMMISSIONING,GLEADLESS MEDICAL CENTRE,21222205,"67,346.75 "
Department of Health,NHS Sheffield CCG,31/03/2018,C&M-PMS DES Learn Dsblty Hlth Chk,PRC DELEGATED CO-COMMISSIONING,GLEADLESS MEDICAL CENTRE,21222205,"3,080.00 "
Department of Health,NHS Sheffield CCG,31/03/2018,C&M-PMS Funding Differential Review,PRC DELEGATED CO-COMMISSIONING,GLEADLESS MEDICAL CENTRE,21222205,"1,261.42 "
Department of Health,NHS Sheffield CCG,31/03/2018,C&M-PMS Out of Hours Opt Outs,PRC DELEGATED CO-COMMISSIONING,GLEADLESS MEDICAL CENTRE,21222205,31.47 
Department of Health,NHS Sheffield CCG,31/03/2018,C&M-PMS PCO Seniority,PRC DELEGATED CO-COMMISSIONING,GLEADLESS MEDICAL CENTRE,21222205,"4,088.45 "
Department of Health,NHS Sheffield CCG,31/03/2018,C&M-PMS Prem Notional Rent,PRC DELEGATED CO-COMMISSIONING,GLEADLESS MEDICAL CENTRE,21222205,"6,750.00 "
Department of Health,NHS Sheffield CCG,31/03/2018,C&M-PMS Prem Water Rates,PRC DELEGATED CO-COMMISSIONING,GLEADLESS MEDICAL CENTRE,21222205,231.43 
Department of Health,NHS Sheffield CCG,31/03/2018,C&M-PMS QOF Aspiration,PRC DELEGATED CO-COMMISSIONING,GLEADLESS MEDICAL CENTRE,21222205,"8,204.51 "
Department of Health,NHS Sheffield CCG,31/03/2018,C&M-GMS Cost of Drugs -Prescribing,LOCAL ENHANCED SERVICES,GRENOSIDE SURGERY,21472479,"2,246.71 "
Department of Health,NHS Sheffield CCG,31/03/2018,C&M-GMS DES Extended Hours Access,PRC DELEGATED CO-COMMISSIONING,GRENOSIDE SURGERY,21472479,"3,469.88 "
Department of Health,NHS Sheffield CCG,31/03/2018,C&M-GMS Global Sum,PRC DELEGATED CO-COMMISSIONING,GRENOSIDE SURGERY,21472479,"54,372.88 "
Department of Health,NHS Sheffield CCG,31/03/2018,C&M-GMS PCO Seniority,PRC DELEGATED CO-COMMISSIONING,GRENOSIDE SURGERY,21472479,"1,949.63 "
Department of Health,NHS Sheffield CCG,31/03/2018,C&M-GMS Prem Notional Rent,PRC DELEGATED CO-COMMISSIONING,GRENOSIDE SURGERY,21472479,"8,150.17 "
Department of Health,NHS Sheffield CCG,31/03/2018,C&M-GMS Prof Fees Prescribing,PRC DELEGATED CO-COMMISSIONING,GRENOSIDE SURGERY,21472479,353.44 
Department of Health,NHS Sheffield CCG,31/03/2018,C&M-GMS QOF Aspiration,PRC DELEGATED CO-COMMISSIONING,GRENOSIDE SURGERY,21472479,"6,197.70 "
Department of Health,NHS Sheffield CCG,31/03/2018,C&M-GMS Cost of Drugs -Prescribing,LOCAL ENHANCED SERVICES,GREYSTONES MEDICAL CENTRE,21472481,467.36 
Department of Health,NHS Sheffield CCG,31/03/2018,C&M-GMS DES Extended Hours Access,PRC DELEGATED CO-COMMISSIONING,GREYSTONES MEDICAL CENTRE,21472481,"1,742.30 "
Department of Health,NHS Sheffield CCG,31/03/2018,C&M-GMS Global Sum,PRC DELEGATED CO-COMMISSIONING,GREYSTONES MEDICAL CENTRE,21472481,"18,705.95 "
Department of Health,NHS Sheffield CCG,31/03/2018,C&M-GMS MPIG Correction Factor,PRC DELEGATED CO-COMMISSIONING,GREYSTONES MEDICAL CENTRE,21472481,"1,656.69 "
Department of Health,NHS Sheffield CCG,31/03/2018,C&M-GMS PCO Seniority,PRC DELEGATED CO-COMMISSIONING,GREYSTONES MEDICAL CENTRE,21472481,579.37 
Department of Health,NHS Sheffield CCG,31/03/2018,C&M-GMS Prem Notional Rent,PRC DELEGATED CO-COMMISSIONING,GREYSTONES MEDICAL CENTRE,21472481,"2,885.42 "
Department of Health,NHS Sheffield CCG,31/03/2018,C&M-GMS Prof Fees Prescribing,PRC DELEGATED CO-COMMISSIONING,GREYSTONES MEDICAL CENTRE,21472481,117.08 
Department of Health,NHS Sheffield CCG,31/03/2018,C&M-GMS QOF Aspiration,PRC DELEGATED CO-COMMISSIONING,GREYSTONES MEDICAL CENTRE,21472481,"2,071.10 "
Department of Health,NHS Sheffield CCG,31/03/2018,C&M-PMS Contract Value,PRC DELEGATED CO-COMMISSIONING,HACKENTHORPE MEDICAL CENTRE,21222209,"46,099.02 "
Department of Health,NHS Sheffield CCG,31/03/2018,C&M-PMS DES Extended Hours Access,PRC DELEGATED CO-COMMISSIONING,HACKENTHORPE MEDICAL CENTRE,21222209,"3,154.95 "
Department of Health,NHS Sheffield CCG,31/03/2018,C&M-PMS Funding Differential Review,PRC DELEGATED CO-COMMISSIONING,HACKENTHORPE MEDICAL CENTRE,21222209,"2,105.58 "
Department of Health,NHS Sheffield CCG,31/03/2018,C&M-PMS Out of Hours Opt Outs,PRC DELEGATED CO-COMMISSIONING,HACKENTHORPE MEDICAL CENTRE,21222209,5.82 
Department of Health,NHS Sheffield CCG,31/03/2018,C&M-PMS PCO Seniority,PRC DELEGATED CO-COMMISSIONING,HACKENTHORPE MEDICAL CENTRE,21222209,"3,219.72 "
Department of Health,NHS Sheffield CCG,31/03/2018,C&M-PMS Prem Notional Rent,PRC DELEGATED CO-COMMISSIONING,HACKENTHORPE MEDICAL CENTRE,21222209,"4,981.25 "
Department of Health,NHS Sheffield CCG,31/03/2018,C&M-PMS QOF Aspiration,PRC DELEGATED CO-COMMISSIONING,HACKENTHORPE MEDICAL CENTRE,21222209,"6,731.39 "
Department of Health,NHS Sheffield CCG,31/03/2018,C&M-GMS Cost of Drugs -Prescribing,LOCAL ENHANCED SERVICES,HANDSWORTH MEDICAL PRACTICE SHEFFIELD,21472477,"1,480.30 "
Department of Health,NHS Sheffield CCG,31/03/2018,C&M-GMS DES Extended Hours Access,PRC DELEGATED CO-COMMISSIONING,HANDSWORTH MEDICAL PRACTICE SHEFFIELD,21472477,"4,690.63 "
Department of Health,NHS Sheffield CCG,31/03/2018,C&M-GMS Global Sum,PRC DELEGATED CO-COMMISSIONING,HANDSWORTH MEDICAL PRACTICE SHEFFIELD,21472477,"71,422.44 "
Department of Health,NHS Sheffield CCG,31/03/2018,C&M-GMS PCO Seniority,PRC DELEGATED CO-COMMISSIONING,HANDSWORTH MEDICAL PRACTICE SHEFFIELD,21472477,"1,969.92 "
Department of Health,NHS Sheffield CCG,31/03/2018,C&M-GMS Prem Notional Rent,PRC DELEGATED CO-COMMISSIONING,HANDSWORTH MEDICAL PRACTICE SHEFFIELD,21472477,"3,321.66 "
Department of Health,NHS Sheffield CCG,31/03/2018,C&M-GMS Prof Fees Prescribing,PRC DELEGATED CO-COMMISSIONING,HANDSWORTH MEDICAL PRACTICE SHEFFIELD,21472477,229.74 
Department of Health,NHS Sheffield CCG,31/03/2018,C&M-GMS QOF Aspiration,PRC DELEGATED CO-COMMISSIONING,HANDSWORTH MEDICAL PRACTICE SHEFFIELD,21472477,"8,011.43 "
Department of Health,NHS Sheffield CCG,31/03/2018,C&M-GMS Cost of Drugs -Prescribing,LOCAL ENHANCED SERVICES,HEALTH CARE SURGERY,21472487,"1,263.68 "
Department of Health,NHS Sheffield CCG,31/03/2018,C&M-GMS DES Extended Hours Access,PRC DELEGATED CO-COMMISSIONING,HEALTH CARE SURGERY,21472487,"2,360.75 "
Department of Health,NHS Sheffield CCG,31/03/2018,C&M-GMS Global Sum,PRC DELEGATED CO-COMMISSIONING,HEALTH CARE SURGERY,21472487,"36,036.90 "
Department of Health,NHS Sheffield CCG,31/03/2018,C&M-GMS MPIG Correction Factor,PRC DELEGATED CO-COMMISSIONING,HEALTH CARE SURGERY,21472487,"1,170.03 "
Department of Health,NHS Sheffield CCG,31/03/2018,C&M-GMS PCO Seniority,PRC DELEGATED CO-COMMISSIONING,HEALTH CARE SURGERY,21472487,637.24 
Department of Health,NHS Sheffield CCG,31/03/2018,C&M-GMS Prem Notional Rent,PRC DELEGATED CO-COMMISSIONING,HEALTH CARE SURGERY,21472487,"3,862.50 "
Department of Health,NHS Sheffield CCG,31/03/2018,C&M-GMS Prem Rates,PRC DELEGATED CO-COMMISSIONING,HEALTH CARE SURGERY,21472487,518.00 
Department of Health,NHS Sheffield CCG,31/03/2018,C&M-GMS Prof Fees Prescribing,PRC DELEGATED CO-COMMISSIONING,HEALTH CARE SURGERY,21472487,251.83 
Department of Health,NHS Sheffield CCG,31/03/2018,C&M-GMS QOF Aspiration,PRC DELEGATED CO-COMMISSIONING,HEALTH CARE SURGERY,21472487,"4,381.71 "
Department of Health,NHS Sheffield CCG,31/03/2018,Other Gen Supplies & Srv,BEREAVEMENT SERVICE,HEALTH EDUCATION ENGLAND,21543507,"207,500.00 "
Department of Health,NHS Sheffield CCG,31/03/2018,C&M-GMS Cost of Drugs -Prescribing,LOCAL ENHANCED SERVICES,HEELEY GREEN SURGERY,21472483,"1,121.06 "
Department of Health,NHS Sheffield CCG,31/03/2018,C&M-GMS DES Extended Hours Access,PRC DELEGATED CO-COMMISSIONING,HEELEY GREEN SURGERY,21472483,"2,696.10 "
Department of Health,NHS Sheffield CCG,31/03/2018,C&M-GMS Global Sum,PRC DELEGATED CO-COMMISSIONING,HEELEY GREEN SURGERY,21472483,"39,706.80 "
Department of Health,NHS Sheffield CCG,31/03/2018,C&M-GMS MPIG Correction Factor,PRC DELEGATED CO-COMMISSIONING,HEELEY GREEN SURGERY,21472483,564.30 
Department of Health,NHS Sheffield CCG,31/03/2018,C&M-GMS PCO Seniority,PRC DELEGATED CO-COMMISSIONING,HEELEY GREEN SURGERY,21472483,927.11 
Department of Health,NHS Sheffield CCG,31/03/2018,C&M-GMS Prem Notional Rent,PRC DELEGATED CO-COMMISSIONING,HEELEY GREEN SURGERY,21472483,"3,254.17 "
Department of Health,NHS Sheffield CCG,31/03/2018,C&M-GMS Prof Fees Prescribing,PRC DELEGATED CO-COMMISSIONING,HEELEY GREEN SURGERY,21472483,245.20 
Department of Health,NHS Sheffield CCG,31/03/2018,C&M-GMS QOF Aspiration,PRC DELEGATED CO-COMMISSIONING,HEELEY GREEN SURGERY,21472483,"4,920.38 "
Department of Health,NHS Sheffield CCG,31/03/2018,C&M-GMS Cost of Drugs -Prescribing,LOCAL ENHANCED SERVICES,HOLLIES MEDICAL CENTRE,21472485,"1,697.45 "
Department of Health,NHS Sheffield CCG,31/03/2018,C&M-GMS DES Extended Hours Access,PRC DELEGATED CO-COMMISSIONING,HOLLIES MEDICAL CENTRE,21472485,"4,035.13 "
Department of Health,NHS Sheffield CCG,31/03/2018,C&M-GMS Global Sum,PRC DELEGATED CO-COMMISSIONING,HOLLIES MEDICAL CENTRE,21472485,"53,581.74 "
Department of Health,NHS Sheffield CCG,31/03/2018,C&M-GMS MPIG Correction Factor,PRC DELEGATED CO-COMMISSIONING,HOLLIES MEDICAL CENTRE,21472485,"2,179.09 "
Department of Health,NHS Sheffield CCG,31/03/2018,C&M-GMS PCO Seniority,PRC DELEGATED CO-COMMISSIONING,HOLLIES MEDICAL CENTRE,21472485,"4,167.98 "
Department of Health,NHS Sheffield CCG,31/03/2018,C&M-GMS Prem Notional Rent,PRC DELEGATED CO-COMMISSIONING,HOLLIES MEDICAL CENTRE,21472485,"3,229.17 "
Department of Health,NHS Sheffield CCG,31/03/2018,C&M-GMS Prof Fees Prescribing,PRC DELEGATED CO-COMMISSIONING,HOLLIES MEDICAL CENTRE,21472485,198.81 
Department of Health,NHS Sheffield CCG,31/03/2018,C&M-GMS QOF Aspiration,PRC DELEGATED CO-COMMISSIONING,HOLLIES MEDICAL CENTRE,21472485,"6,561.21 "
Department of Health,NHS Sheffield CCG,31/03/2018,Cont Care-Physical Disab (<65),CHC ADULT FULLY FUNDED,HORIZON CARE HOMES LTD,21226803,"48,104.75 "
Department of Health,NHS Sheffield CCG,31/03/2018,Cont Care-Physical Disab (<65),CHC ADULT FULLY FUNDED,HORIZON CARE HOMES LTD,21226821,"49,308.28 "
Department of Health,NHS Sheffield CCG,31/03/2018,Cont Care-Physical Disab (<65),CHC ADULT FULLY FUNDED,HORIZON CARE HOMES LTD,21310043,"32,993.92 "
Department of Health,NHS Sheffield CCG,31/03/2018,C&M-PMS Contract Value,PRC DELEGATED CO-COMMISSIONING,JAUNTY SPRINGS HEALTH CENTRE,21222210,"28,777.86 "
Department of Health,NHS Sheffield CCG,31/03/2018,C&M-PMS DES Extended Hours Access,PRC DELEGATED CO-COMMISSIONING,JAUNTY SPRINGS HEALTH CENTRE,21222210,"1,606.57 "
Department of Health,NHS Sheffield CCG,31/03/2018,C&M-PMS Funding Differential Review,PRC DELEGATED CO-COMMISSIONING,JAUNTY SPRINGS HEALTH CENTRE,21222210,448.00 
Department of Health,NHS Sheffield CCG,31/03/2018,C&M-PMS Out of Hours Opt Outs,PRC DELEGATED CO-COMMISSIONING,JAUNTY SPRINGS HEALTH CENTRE,21222210,10.41 
Department of Health,NHS Sheffield CCG,31/03/2018,C&M-PMS PCO Seniority,PRC DELEGATED CO-COMMISSIONING,JAUNTY SPRINGS HEALTH CENTRE,21222210,848.05 
Department of Health,NHS Sheffield CCG,31/03/2018,C&M-PMS Prem Notional Rent,PRC DELEGATED CO-COMMISSIONING,JAUNTY SPRINGS HEALTH CENTRE,21222210,"3,208.33 "
Department of Health,NHS Sheffield CCG,31/03/2018,C&M-PMS Prem Water Rates,PRC DELEGATED CO-COMMISSIONING,JAUNTY SPRINGS HEALTH CENTRE,21222210,40.55 
Department of Health,NHS Sheffield CCG,31/03/2018,C&M-PMS QOF Aspiration,PRC DELEGATED CO-COMMISSIONING,JAUNTY SPRINGS HEALTH CENTRE,21222210,"4,393.31 "
Department of Health,NHS Sheffield CCG,31/03/2018,NHS Recbles <1Yr- CHC Risk Pool Con,CHC ADULT FULLY FUNDED,KEYPOINT LAW LLP,21146763,"25,648.77 "
Department of Health,NHS Sheffield CCG,31/03/2018,NHS Recbles <1Yr- CHC Risk Pool Con,CHC ADULT FULLY FUNDED,KEYPOINT LAW LLP,21146808,"(25,648.77)"
Department of Health,NHS Sheffield CCG,31/03/2018,C&M-GMS IT Comm Servs -GP Practices,PRIMARY CARE IT,KIER BUSINESS SERVICES LTD,21456799,"105,622.80 "
Department of Health,NHS Sheffield CCG,31/03/2018,FM Computer Contracts,BUSINESS INFORMATICS,KIER BUSINESS SERVICES LTD,21456799,"37,381.20 "
Department of Health,NHS Sheffield CCG,31/03/2018,C&M-GMS IT Comm Servs -GP Practices,PRIMARY CARE IT,KIER BUSINESS SERVICES LTD,21505530,"28,054.20 "
Department of Health,NHS Sheffield CCG,31/03/2018,IT(Owned)-Cost-Addns-IT,BUSINESS INFORMATICS,KIER BUSINESS SERVICES LTD,21514648,"55,257.48 "
Department of Health,NHS Sheffield CCG,31/03/2018,C&M-GMS LES Translation Fees,INTERPRETING SERVICES,LANGUAGELINE SOLUTIONS,21282661,"35,028.48 "
Department of Health,NHS Sheffield CCG,31/03/2018,C&M-GMS LES Translation Fees,INTERPRETING SERVICES,LANGUAGELINE SOLUTIONS,21282670,"29,928.00 "
Department of Health,NHS Sheffield CCG,31/03/2018,Hcare Srv Rec NHS Trust-Contract Baseline,ACUTE COMMISSIONING,LEEDS TEACHING HOSPITALS NHS TRUST,21166112,"53,622.82 "
Department of Health,NHS Sheffield CCG,31/03/2018,Cont Care-Physical Disab (<65),CHC ADULT FULLY FUNDED,LONGLEY HEALTH CARE LTD,21226814,"86,606.43 "
Department of Health,NHS Sheffield CCG,31/03/2018,Cont Care-Physical Disab (<65),CHC ADULT FULLY FUNDED,LOXLEY HEALTH CARE LTD,21226817,"77,082.59 "
Department of Health,NHS Sheffield CCG,31/03/2018,C&M-PMS Contract Value,PRC DELEGATED CO-COMMISSIONING,MANCHESTER ROAD SURGERY SHEFFIELD,21222213,"30,567.59 "
Department of Health,NHS Sheffield CCG,31/03/2018,C&M-PMS Funding Differential Review,PRC DELEGATED CO-COMMISSIONING,MANCHESTER ROAD SURGERY SHEFFIELD,21222213,446.67 
Department of Health,NHS Sheffield CCG,31/03/2018,C&M-PMS PCO Seniority,PRC DELEGATED CO-COMMISSIONING,MANCHESTER ROAD SURGERY SHEFFIELD,21222213,"2,071.60 "
Department of Health,NHS Sheffield CCG,31/03/2018,C&M-PMS Prem Cost Rent,PRC DELEGATED CO-COMMISSIONING,MANCHESTER ROAD SURGERY SHEFFIELD,21222213,"3,472.17 "
Department of Health,NHS Sheffield CCG,31/03/2018,C&M-PMS Prem Notional Rent,PRC DELEGATED CO-COMMISSIONING,MANCHESTER ROAD SURGERY SHEFFIELD,21222213,442.92 
Department of Health,NHS Sheffield CCG,31/03/2018,C&M-PMS Prem Water Rates,PRC DELEGATED CO-COMMISSIONING,MANCHESTER ROAD SURGERY SHEFFIELD,21222213,126.46 
Department of Health,NHS Sheffield CCG,31/03/2018,C&M-PMS QOF Aspiration,PRC DELEGATED CO-COMMISSIONING,MANCHESTER ROAD SURGERY SHEFFIELD,21222213,"4,335.60 "
Department of Health,NHS Sheffield CCG,31/03/2018,Hcare Srv Rec Fdtn Trust-Non Contract,NCAS/OATS,MANCHESTER UNIVERSITY NHS FOUNDATION TRUST,21334852,"85,137.00 "
Department of Health,NHS Sheffield CCG,31/03/2018,Hcare Srv Rec Fdtn Trust-Non Contract,NCAS/OATS,MANCHESTER UNIVERSITY NHS FOUNDATION TRUST,21428348,"32,573.66 "
Department of Health,NHS Sheffield CCG,31/03/2018,C&M-GMS Cost of Drugs -Prescribing,LOCAL ENHANCED SERVICES,MANOR PARK MEDICAL CENTRE SHEFFIELD,21472497,"1,451.85 "
Department of Health,NHS Sheffield CCG,31/03/2018,C&M-GMS DES Extended Hours Access,PRC DELEGATED CO-COMMISSIONING,MANOR PARK MEDICAL CENTRE SHEFFIELD,21472497,"2,088.10 "
Department of Health,NHS Sheffield CCG,31/03/2018,C&M-GMS Global Sum,PRC DELEGATED CO-COMMISSIONING,MANOR PARK MEDICAL CENTRE SHEFFIELD,21472497,"33,167.48 "
Department of Health,NHS Sheffield CCG,31/03/2018,C&M-GMS MPIG Correction Factor,PRC DELEGATED CO-COMMISSIONING,MANOR PARK MEDICAL CENTRE SHEFFIELD,21472497,559.19 
Department of Health,NHS Sheffield CCG,31/03/2018,C&M-GMS PCO Seniority,PRC DELEGATED CO-COMMISSIONING,MANOR PARK MEDICAL CENTRE SHEFFIELD,21472497,"1,519.34 "
Department of Health,NHS Sheffield CCG,31/03/2018,C&M-GMS Prem Notional Rent,PRC DELEGATED CO-COMMISSIONING,MANOR PARK MEDICAL CENTRE SHEFFIELD,21472497,"3,050.00 "
Department of Health,NHS Sheffield CCG,31/03/2018,C&M-GMS Prof Fees Prescribing,PRC DELEGATED CO-COMMISSIONING,MANOR PARK MEDICAL CENTRE SHEFFIELD,21472497,371.12 
Department of Health,NHS Sheffield CCG,31/03/2018,C&M-GMS QOF Aspiration,PRC DELEGATED CO-COMMISSIONING,MANOR PARK MEDICAL CENTRE SHEFFIELD,21472497,"4,479.66 "
Department of Health,NHS Sheffield CCG,31/03/2018,C&M-GMS Cost of Drugs -Prescribing,LOCAL ENHANCED SERVICES,MATHEWS PRACTICE,21472494,728.80 
Department of Health,NHS Sheffield CCG,31/03/2018,C&M-GMS DES Extended Hours Access,PRC DELEGATED CO-COMMISSIONING,MATHEWS PRACTICE,21472494,"4,369.53 "
Department of Health,NHS Sheffield CCG,31/03/2018,C&M-GMS Global Sum,PRC DELEGATED CO-COMMISSIONING,MATHEWS PRACTICE,21472494,"63,567.88 "
Department of Health,NHS Sheffield CCG,31/03/2018,C&M-GMS MPIG Correction Factor,PRC DELEGATED CO-COMMISSIONING,MATHEWS PRACTICE,21472494,898.44 
Department of Health,NHS Sheffield CCG,31/03/2018,C&M-GMS PCO Seniority,PRC DELEGATED CO-COMMISSIONING,MATHEWS PRACTICE,21472494,"1,132.73 "
Department of Health,NHS Sheffield CCG,31/03/2018,C&M-GMS Prem Notional Rent,PRC DELEGATED CO-COMMISSIONING,MATHEWS PRACTICE,21472494,"8,660.46 "
Department of Health,NHS Sheffield CCG,31/03/2018,C&M-GMS Prof Fees Prescribing,PRC DELEGATED CO-COMMISSIONING,MATHEWS PRACTICE,21472494,245.20 
Department of Health,NHS Sheffield CCG,31/03/2018,C&M-GMS QOF Aspiration,PRC DELEGATED CO-COMMISSIONING,MATHEWS PRACTICE,21472494,"9,686.98 "
Department of Health,NHS Sheffield CCG,31/03/2018,C&M-PMS Contract Value,PRC DELEGATED CO-COMMISSIONING,MEADOWHEAD GROUP PRACTICE,21222211,"75,691.91 "
Department of Health,NHS Sheffield CCG,31/03/2018,C&M-PMS DES Extended Hours Access,PRC DELEGATED CO-COMMISSIONING,MEADOWHEAD GROUP PRACTICE,21222211,"4,399.74 "
Department of Health,NHS Sheffield CCG,31/03/2018,C&M-PMS Out of Hours Opt Outs,PRC DELEGATED CO-COMMISSIONING,MEADOWHEAD GROUP PRACTICE,21222211,52.26 
Department of Health,NHS Sheffield CCG,31/03/2018,C&M-PMS PCO Seniority,PRC DELEGATED CO-COMMISSIONING,MEADOWHEAD GROUP PRACTICE,21222211,"4,740.44 "
Department of Health,NHS Sheffield CCG,31/03/2018,C&M-PMS Prem Cost Rent,PRC DELEGATED CO-COMMISSIONING,MEADOWHEAD GROUP PRACTICE,21222211,"3,647.42 "
Department of Health,NHS Sheffield CCG,31/03/2018,C&M-PMS Prem Notional Rent,PRC DELEGATED CO-COMMISSIONING,MEADOWHEAD GROUP PRACTICE,21222211,"3,358.33 "
Department of Health,NHS Sheffield CCG,31/03/2018,C&M-PMS QOF Aspiration,PRC DELEGATED CO-COMMISSIONING,MEADOWHEAD GROUP PRACTICE,21222211,"10,533.01 "
Department of Health,NHS Sheffield CCG,31/03/2018,C&M-PMS Contract Value,PRC DELEGATED CO-COMMISSIONING,MEADOWHEAD GROUP PRACTICE,21245448,"(1,055.87)"
Department of Health,NHS Sheffield CCG,31/03/2018,C&M-PMS GP Statutory Levy,PRC DELEGATED CO-COMMISSIONING,MEADOWHEAD GROUP PRACTICE,21245448,(295.29)
Department of Health,NHS Sheffield CCG,31/03/2018,C&M-PMS Out of Hours Opt Outs,PRC DELEGATED CO-COMMISSIONING,MEADOWHEAD GROUP PRACTICE,21245448,"(3,574.94)"
Department of Health,NHS Sheffield CCG,31/03/2018,C&M-PMS Voluntary Levy,PRC DELEGATED CO-COMMISSIONING,MEADOWHEAD GROUP PRACTICE,21245448,(49.22)
Department of Health,NHS Sheffield CCG,31/03/2018,C&M-GMS Cost of Drugs -Prescribing,LOCAL ENHANCED SERVICES,MEDICAL CENTRE CRYSTAL PEAKS,21493136,"2,136.35 "
Department of Health,NHS Sheffield CCG,31/03/2018,C&M-GMS DES Extended Hours Access,PRC DELEGATED CO-COMMISSIONING,MEDICAL CENTRE CRYSTAL PEAKS,21493136,"3,139.28 "
Department of Health,NHS Sheffield CCG,31/03/2018,C&M-GMS Global Sum,PRC DELEGATED CO-COMMISSIONING,MEDICAL CENTRE CRYSTAL PEAKS,21493136,"43,614.85 "
Department of Health,NHS Sheffield CCG,31/03/2018,C&M-GMS MPIG Correction Factor,PRC DELEGATED CO-COMMISSIONING,MEDICAL CENTRE CRYSTAL PEAKS,21493136,"1,697.01 "
Department of Health,NHS Sheffield CCG,31/03/2018,C&M-GMS PCO Locum Adop/Pat/Mat,PRC DELEGATED CO-COMMISSIONING,MEDICAL CENTRE CRYSTAL PEAKS,21493136,"2,263.48 "
Department of Health,NHS Sheffield CCG,31/03/2018,C&M-GMS PCO Seniority,PRC DELEGATED CO-COMMISSIONING,MEDICAL CENTRE CRYSTAL PEAKS,21493136,"2,641.38 "
Department of Health,NHS Sheffield CCG,31/03/2018,C&M-GMS Prem Notional Rent,PRC DELEGATED CO-COMMISSIONING,MEDICAL CENTRE CRYSTAL PEAKS,21493136,270.00 
Department of Health,NHS Sheffield CCG,31/03/2018,C&M-GMS Prem Water Rates,PRC DELEGATED CO-COMMISSIONING,MEDICAL CENTRE CRYSTAL PEAKS,21493136,290.33 
Department of Health,NHS Sheffield CCG,31/03/2018,C&M-GMS Prof Fees Prescribing,PRC DELEGATED CO-COMMISSIONING,MEDICAL CENTRE CRYSTAL PEAKS,21493136,726.76 
Department of Health,NHS Sheffield CCG,31/03/2018,C&M-GMS QOF Aspiration,PRC DELEGATED CO-COMMISSIONING,MEDICAL CENTRE CRYSTAL PEAKS,21493136,"6,023.36 "
Department of Health,NHS Sheffield CCG,31/03/2018,C&M-GMS GP Statutory Levy,PRC DELEGATED CO-COMMISSIONING,MILL ROAD SURGERY SHEFFIELD,21472498,(157.47)
Department of Health,NHS Sheffield CCG,31/03/2018,C&M-GMS QOF Aspiration,PRC DELEGATED CO-COMMISSIONING,MILL ROAD SURGERY SHEFFIELD,21472498,(266.81)
Department of Health,NHS Sheffield CCG,31/03/2018,C&M-GMS Voluntary Levy,PRC DELEGATED CO-COMMISSIONING,MILL ROAD SURGERY SHEFFIELD,21472498,(26.25)
Department of Health,NHS Sheffield CCG,31/03/2018,C&M-GMS Cost of Drugs -Prescribing,LOCAL ENHANCED SERVICES,MILL ROAD SURGERY SHEFFIELD,21472499,"1,356.81 "
Department of Health,NHS Sheffield CCG,31/03/2018,C&M-GMS DES Extended Hours Access,PRC DELEGATED CO-COMMISSIONING,MILL ROAD SURGERY SHEFFIELD,21472499,"2,489.00 "
Department of Health,NHS Sheffield CCG,31/03/2018,C&M-GMS Global Sum,PRC DELEGATED CO-COMMISSIONING,MILL ROAD SURGERY SHEFFIELD,21472499,"38,254.51 "
Department of Health,NHS Sheffield CCG,31/03/2018,C&M-GMS MPIG Correction Factor,PRC DELEGATED CO-COMMISSIONING,MILL ROAD SURGERY SHEFFIELD,21472499,183.06 
Department of Health,NHS Sheffield CCG,31/03/2018,C&M-GMS PCO Seniority,PRC DELEGATED CO-COMMISSIONING,MILL ROAD SURGERY SHEFFIELD,21472499,"1,672.23 "
Department of Health,NHS Sheffield CCG,31/03/2018,C&M-GMS Prem Notional Rent,PRC DELEGATED CO-COMMISSIONING,MILL ROAD SURGERY SHEFFIELD,21472499,"4,587.50 "
Department of Health,NHS Sheffield CCG,31/03/2018,C&M-GMS Prof Fees Prescribing,PRC DELEGATED CO-COMMISSIONING,MILL ROAD SURGERY SHEFFIELD,21472499,176.72 
Department of Health,NHS Sheffield CCG,31/03/2018,C&M-GMS QOF Aspiration,PRC DELEGATED CO-COMMISSIONING,MILL ROAD SURGERY SHEFFIELD,21472499,"5,445.09 "
Department of Health,NHS Sheffield CCG,31/03/2018,C&M-PMS Contract Value,PRC DELEGATED CO-COMMISSIONING,MOSBOROUGH HEALTH CENTRE,21245449,(564.33)
Department of Health,NHS Sheffield CCG,31/03/2018,C&M-PMS GP Statutory Levy,PRC DELEGATED CO-COMMISSIONING,MOSBOROUGH HEALTH CENTRE,21245449,(196.44)
Department of Health,NHS Sheffield CCG,31/03/2018,C&M-PMS Out of Hours Opt Outs,PRC DELEGATED CO-COMMISSIONING,MOSBOROUGH HEALTH CENTRE,21245449,"(2,171.07)"
Department of Health,NHS Sheffield CCG,31/03/2018,C&M-PMS Voluntary Levy,PRC DELEGATED CO-COMMISSIONING,MOSBOROUGH HEALTH CENTRE,21245449,(32.74)
Department of Health,NHS Sheffield CCG,31/03/2018,C&M-PMS Contract Value,PRC DELEGATED CO-COMMISSIONING,MOSBOROUGH HEALTH CENTRE,21245450,"45,903.40 "
Department of Health,NHS Sheffield CCG,31/03/2018,C&M-PMS DES Extended Hours Access,PRC DELEGATED CO-COMMISSIONING,MOSBOROUGH HEALTH CENTRE,21245450,"3,118.38 "
Department of Health,NHS Sheffield CCG,31/03/2018,C&M-PMS Funding Differential Review,PRC DELEGATED CO-COMMISSIONING,MOSBOROUGH HEALTH CENTRE,21245450,"1,253.00 "
Department of Health,NHS Sheffield CCG,31/03/2018,C&M-PMS Out of Hours Opt Outs,PRC DELEGATED CO-COMMISSIONING,MOSBOROUGH HEALTH CENTRE,21245450,27.93 
Department of Health,NHS Sheffield CCG,31/03/2018,C&M-PMS PCO Seniority,PRC DELEGATED CO-COMMISSIONING,MOSBOROUGH HEALTH CENTRE,21245450,"3,001.84 "
Department of Health,NHS Sheffield CCG,31/03/2018,C&M-PMS Prem Notional Rent,PRC DELEGATED CO-COMMISSIONING,MOSBOROUGH HEALTH CENTRE,21245450,"4,091.67 "
Department of Health,NHS Sheffield CCG,31/03/2018,C&M-PMS Prem Water Rates,PRC DELEGATED CO-COMMISSIONING,MOSBOROUGH HEALTH CENTRE,21245450,70.50 
Department of Health,NHS Sheffield CCG,31/03/2018,C&M-PMS QOF Aspiration,PRC DELEGATED CO-COMMISSIONING,MOSBOROUGH HEALTH CENTRE,21245450,"6,017.44 "
Department of Health,NHS Sheffield CCG,31/03/2018,C&M-PMS Contract Value,PRC DELEGATED CO-COMMISSIONING,NETHERGREEN SURGERY,21222215,"60,420.72 "
Department of Health,NHS Sheffield CCG,31/03/2018,C&M-PMS DES Extended Hours Access,PRC DELEGATED CO-COMMISSIONING,NETHERGREEN SURGERY,21222215,"4,435.08 "
Department of Health,NHS Sheffield CCG,31/03/2018,C&M-PMS Funding Differential Review,PRC DELEGATED CO-COMMISSIONING,NETHERGREEN SURGERY,21222215,"1,876.58 "
Department of Health,NHS Sheffield CCG,31/03/2018,C&M-PMS Out of Hours Opt Outs,PRC DELEGATED CO-COMMISSIONING,NETHERGREEN SURGERY,21222215,26.51 
Department of Health,NHS Sheffield CCG,31/03/2018,C&M-PMS PCO Seniority,PRC DELEGATED CO-COMMISSIONING,NETHERGREEN SURGERY,21222215,"4,017.50 "
Department of Health,NHS Sheffield CCG,31/03/2018,C&M-PMS Prem Cost Rent,PRC DELEGATED CO-COMMISSIONING,NETHERGREEN SURGERY,21222215,"5,057.33 "
Department of Health,NHS Sheffield CCG,31/03/2018,C&M-PMS QOF Aspiration,PRC DELEGATED CO-COMMISSIONING,NETHERGREEN SURGERY,21222215,"6,339.79 "
Department of Health,NHS Sheffield CCG,31/03/2018,Cont Care-Physical Disab (<65),CHC ADULT FULLY FUNDED,NEVILLE HEALTH CARE LTD,21310047,"29,328.35 "
Department of Health,NHS Sheffield CCG,31/03/2018,Other Gen Supplies & Srv,CLINICAL LEADS,NHS BARNSLEY CCG,21462651,"70,000.00 "
Department of Health,NHS Sheffield CCG,31/03/2018,Other Gen Supplies & Srv,BEREAVEMENT SERVICE,NHS DONCASTER CCG,21543491,"25,000.00 "
Department of Health,NHS Sheffield CCG,31/03/2018,Charges from CSU,BUSINESS INFORMATICS,NHS NORTH OF ENGLAND CSU,21107258,"30,083.00 "
Department of Health,NHS Sheffield CCG,31/03/2018,Charges from CSU,BUSINESS INFORMATICS,NHS NORTH OF ENGLAND CSU,21310118,"30,083.00 "
Department of Health,NHS Sheffield CCG,31/03/2018,Charges from CSU,BUSINESS INFORMATICS,NHS NORTH OF ENGLAND CSU,21428379,"120,000.00 "
Department of Health,NHS Sheffield CCG,31/03/2018,C&M-GMS Cost of Drugs -Prescribing,LOCAL ENHANCED SERVICES,NORFOLK PARK HEALTH CENTRE,21472504,849.84 
Department of Health,NHS Sheffield CCG,31/03/2018,C&M-GMS Global Sum,PRC DELEGATED CO-COMMISSIONING,NORFOLK PARK HEALTH CENTRE,21472504,"34,538.88 "
Department of Health,NHS Sheffield CCG,31/03/2018,C&M-GMS MPIG Correction Factor,PRC DELEGATED CO-COMMISSIONING,NORFOLK PARK HEALTH CENTRE,21472504,"1,386.91 "
Department of Health,NHS Sheffield CCG,31/03/2018,C&M-GMS PCO Seniority,PRC DELEGATED CO-COMMISSIONING,NORFOLK PARK HEALTH CENTRE,21472504,"3,190.83 "
Department of Health,NHS Sheffield CCG,31/03/2018,C&M-GMS Prem Healthcentre Rent,PRC DELEGATED CO-COMMISSIONING,NORFOLK PARK HEALTH CENTRE,21472504,"23,010.32 "
Department of Health,NHS Sheffield CCG,31/03/2018,C&M-GMS Prof Fees Prescribing,PRC DELEGATED CO-COMMISSIONING,NORFOLK PARK HEALTH CENTRE,21472504,185.56 
Department of Health,NHS Sheffield CCG,31/03/2018,C&M-GMS QOF Aspiration,PRC DELEGATED CO-COMMISSIONING,NORFOLK PARK HEALTH CENTRE,21472504,"4,068.39 "
Department of Health,NHS Sheffield CCG,31/03/2018,Hcare Srv Rec NHS Trust-Non Contract,NCAS/OATS,NORTHUMBERLAND TYNE AND WEAR NHS FOUNDATION TRUST,21334899,"74,741.00 "
Department of Health,NHS Sheffield CCG,31/03/2018,Hcare Srv Rec NHS Trust-Non Contract,NCAS/OATS,NORTHUMBERLAND TYNE AND WEAR NHS FOUNDATION TRUST,21334900,"67,508.00 "
Department of Health,NHS Sheffield CCG,31/03/2018,Hcare Srv Rec NHS Trust-Non Contract,NCAS/OATS,NORTHUMBERLAND TYNE AND WEAR NHS FOUNDATION TRUST,21454710,"74,741.00 "
Department of Health,NHS Sheffield CCG,31/03/2018,C&M-GMS Cost of Drugs -Prescribing,LOCAL ENHANCED SERVICES,NORWOOD MEDICAL CENTRE SHEFFIELD,21472507,800.96 
Department of Health,NHS Sheffield CCG,31/03/2018,C&M-GMS DES Extended Hours Access,PRC DELEGATED CO-COMMISSIONING,NORWOOD MEDICAL CENTRE SHEFFIELD,21472507,"3,752.03 "
Department of Health,NHS Sheffield CCG,31/03/2018,C&M-GMS Global Sum,PRC DELEGATED CO-COMMISSIONING,NORWOOD MEDICAL CENTRE SHEFFIELD,21472507,"61,119.87 "
Department of Health,NHS Sheffield CCG,31/03/2018,C&M-GMS PCO Seniority,PRC DELEGATED CO-COMMISSIONING,NORWOOD MEDICAL CENTRE SHEFFIELD,21472507,"3,481.22 "
Department of Health,NHS Sheffield CCG,31/03/2018,C&M-GMS Prem Notional Rent,PRC DELEGATED CO-COMMISSIONING,NORWOOD MEDICAL CENTRE SHEFFIELD,21472507,"5,187.50 "
Department of Health,NHS Sheffield CCG,31/03/2018,C&M-GMS Prof Fees Prescribing,PRC DELEGATED CO-COMMISSIONING,NORWOOD MEDICAL CENTRE SHEFFIELD,21472507,201.02 
Department of Health,NHS Sheffield CCG,31/03/2018,C&M-GMS QOF Aspiration,PRC DELEGATED CO-COMMISSIONING,NORWOOD MEDICAL CENTRE SHEFFIELD,21472507,"8,411.55 "
Department of Health,NHS Sheffield CCG,31/03/2018,Hcare Srv Rec NHS Trust-Contract Baseline,ACUTE COMMISSIONING,NOTTINGHAM UNIVERSITY HOSPITALS NHS TRUST,21334830,"76,275.00 "
Department of Health,NHS Sheffield CCG,31/03/2018,Clinical&Medical-Independent Sector,ACUTE COMMISSIONING,ONEHEALTH GROUP,21226789,"90,000.00 "
Department of Health,NHS Sheffield CCG,31/03/2018,Clinical&Medical-Independent Sector,ACUTE COMMISSIONING,ONEHEALTH GROUP,21524464,"90,000.00 "
Department of Health,NHS Sheffield CCG,31/03/2018,Clinical&Medical-Independent Sector,ACUTE COMMISSIONING,ONEHEALTH GROUP,21543514,"(25,064.53)"
Department of Health,NHS Sheffield CCG,31/03/2018,C&M-GMS Cost of Drugs -Dispensing,LOCAL ENHANCED SERVICES,OUGHTIBRIDGE SURGERY,21472511,"(14,979.86)"
Department of Health,NHS Sheffield CCG,31/03/2018,C&M-GMS GP Statutory Levy,PRC DELEGATED CO-COMMISSIONING,OUGHTIBRIDGE SURGERY,21472511,(176.13)
Department of Health,NHS Sheffield CCG,31/03/2018,C&M-GMS Prem Rates,PRC DELEGATED CO-COMMISSIONING,OUGHTIBRIDGE SURGERY,21472511,"(7,015.88)"
Department of Health,NHS Sheffield CCG,31/03/2018,C&M-GMS PrscChrgsCll&RmttdbyGPCntra,PRC DELEGATED CO-COMMISSIONING,OUGHTIBRIDGE SURGERY,21472511,(731.00)
Department of Health,NHS Sheffield CCG,31/03/2018,C&M-GMS QOF Aspiration,PRC DELEGATED CO-COMMISSIONING,OUGHTIBRIDGE SURGERY,21472511,(392.91)
Department of Health,NHS Sheffield CCG,31/03/2018,C&M-GMS Voluntary Levy,PRC DELEGATED CO-COMMISSIONING,OUGHTIBRIDGE SURGERY,21472511,(29.36)
Department of Health,NHS Sheffield CCG,31/03/2018,C&M-GMS Cost of Drugs -Dispensing,LOCAL ENHANCED SERVICES,OUGHTIBRIDGE SURGERY,21472512,"28,428.84 "
Department of Health,NHS Sheffield CCG,31/03/2018,C&M-GMS Dispensing Quality Sch,PRC DELEGATED CO-COMMISSIONING,OUGHTIBRIDGE SURGERY,21472512,"3,085.68 "
Department of Health,NHS Sheffield CCG,31/03/2018,C&M-GMS Global Sum,PRC DELEGATED CO-COMMISSIONING,OUGHTIBRIDGE SURGERY,21472512,"41,325.76 "
Department of Health,NHS Sheffield CCG,31/03/2018,C&M-GMS PCO Seniority,PRC DELEGATED CO-COMMISSIONING,OUGHTIBRIDGE SURGERY,21472512,831.69 
Department of Health,NHS Sheffield CCG,31/03/2018,C&M-GMS Prem Notional Rent,PRC DELEGATED CO-COMMISSIONING,OUGHTIBRIDGE SURGERY,21472512,"3,957.33 "
Department of Health,NHS Sheffield CCG,31/03/2018,C&M-GMS Prof Fees Dispensing,PRC DELEGATED CO-COMMISSIONING,OUGHTIBRIDGE SURGERY,21472512,"4,623.54 "
Department of Health,NHS Sheffield CCG,31/03/2018,C&M-GMS PrscrptnChrgsColl&RmttdbyGP,LOCAL ENHANCED SERVICES,OUGHTIBRIDGE SURGERY,21472512,731.00 
Department of Health,NHS Sheffield CCG,31/03/2018,C&M-GMS QOF Aspiration,PRC DELEGATED CO-COMMISSIONING,OUGHTIBRIDGE SURGERY,21472512,"4,693.88 "
Department of Health,NHS Sheffield CCG,31/03/2018,C&M-PMS Contract Value,PRC DELEGATED CO-COMMISSIONING,OWLTHORPE MEDICAL CENTRE,21222217,"36,000.73 "
Department of Health,NHS Sheffield CCG,31/03/2018,C&M-PMS DES Extended Hours Access,PRC DELEGATED CO-COMMISSIONING,OWLTHORPE MEDICAL CENTRE,21222217,"2,203.53 "
Department of Health,NHS Sheffield CCG,31/03/2018,C&M-PMS Funding Differential Review,PRC DELEGATED CO-COMMISSIONING,OWLTHORPE MEDICAL CENTRE,21222217,"1,499.67 "
Department of Health,NHS Sheffield CCG,31/03/2018,C&M-PMS Out of Hours Opt Outs,PRC DELEGATED CO-COMMISSIONING,OWLTHORPE MEDICAL CENTRE,21222217,189.56 
Department of Health,NHS Sheffield CCG,31/03/2018,C&M-PMS PCO Seniority,PRC DELEGATED CO-COMMISSIONING,OWLTHORPE MEDICAL CENTRE,21222217,571.24 
Department of Health,NHS Sheffield CCG,31/03/2018,C&M-PMS Prem Actual Rent,PRC DELEGATED CO-COMMISSIONING,OWLTHORPE MEDICAL CENTRE,21222217,"7,539.58 "
Department of Health,NHS Sheffield CCG,31/03/2018,C&M-PMS Prem Water Rates,PRC DELEGATED CO-COMMISSIONING,OWLTHORPE MEDICAL CENTRE,21222217,"1,056.06 "
Department of Health,NHS Sheffield CCG,31/03/2018,C&M-PMS QOF Aspiration,PRC DELEGATED CO-COMMISSIONING,OWLTHORPE MEDICAL CENTRE,21222217,"4,031.40 "
Department of Health,NHS Sheffield CCG,31/03/2018,C&M-PMS Contract Value,PRC DELEGATED CO-COMMISSIONING,PAGE HALL MEDICAL CENTRE,21222218,(244.04)
Department of Health,NHS Sheffield CCG,31/03/2018,C&M-PMS GP Statutory Levy,PRC DELEGATED CO-COMMISSIONING,PAGE HALL MEDICAL CENTRE,21222218,(226.50)
Department of Health,NHS Sheffield CCG,31/03/2018,C&M-PMS Out of Hours Opt Outs,PRC DELEGATED CO-COMMISSIONING,PAGE HALL MEDICAL CENTRE,21222218,"(2,546.39)"
Department of Health,NHS Sheffield CCG,31/03/2018,C&M-PMS Prem Actual Rent,PRC DELEGATED CO-COMMISSIONING,PAGE HALL MEDICAL CENTRE,21222218,(135.00)
Department of Health,NHS Sheffield CCG,31/03/2018,C&M-PMS Voluntary Levy,PRC DELEGATED CO-COMMISSIONING,PAGE HALL MEDICAL CENTRE,21222218,(37.75)
Department of Health,NHS Sheffield CCG,31/03/2018,C&M-PMS Contract Value,PRC DELEGATED CO-COMMISSIONING,PAGE HALL MEDICAL CENTRE,21222219,"53,969.79 "
Department of Health,NHS Sheffield CCG,31/03/2018,C&M-PMS DES Extended Hours Access,PRC DELEGATED CO-COMMISSIONING,PAGE HALL MEDICAL CENTRE,21222219,"3,538.75 "
Department of Health,NHS Sheffield CCG,31/03/2018,C&M-PMS Funding Differential Review,PRC DELEGATED CO-COMMISSIONING,PAGE HALL MEDICAL CENTRE,21222219,"5,391.08 "
Department of Health,NHS Sheffield CCG,31/03/2018,C&M-PMS Out of Hours Opt Outs,PRC DELEGATED CO-COMMISSIONING,PAGE HALL MEDICAL CENTRE,21222219,12.09 
Department of Health,NHS Sheffield CCG,31/03/2018,C&M-PMS PCO Seniority,PRC DELEGATED CO-COMMISSIONING,PAGE HALL MEDICAL CENTRE,21222219,"2,744.73 "
Department of Health,NHS Sheffield CCG,31/03/2018,C&M-PMS Prem Actual Rent,PRC DELEGATED CO-COMMISSIONING,PAGE HALL MEDICAL CENTRE,21222219,135.00 
Department of Health,NHS Sheffield CCG,31/03/2018,C&M-PMS Prem Notional Rent,PRC DELEGATED CO-COMMISSIONING,PAGE HALL MEDICAL CENTRE,21222219,"4,833.33 "
Department of Health,NHS Sheffield CCG,31/03/2018,C&M-PMS Prem Water Rates,PRC DELEGATED CO-COMMISSIONING,PAGE HALL MEDICAL CENTRE,21222219,198.10 
Department of Health,NHS Sheffield CCG,31/03/2018,C&M-PMS QOF Aspiration,PRC DELEGATED CO-COMMISSIONING,PAGE HALL MEDICAL CENTRE,21222219,"5,102.24 "
Department of Health,NHS Sheffield CCG,31/03/2018,C&M-PMS Contract Value,PRC DELEGATED CO-COMMISSIONING,PARK HEALTH CENTRE,21222221,"40,089.32 "
Department of Health,NHS Sheffield CCG,31/03/2018,C&M-PMS DES Extended Hours Access,PRC DELEGATED CO-COMMISSIONING,PARK HEALTH CENTRE,21222221,"2,487.10 "
Department of Health,NHS Sheffield CCG,31/03/2018,C&M-PMS Funding Differential Review,PRC DELEGATED CO-COMMISSIONING,PARK HEALTH CENTRE,21222221,"3,290.17 "
Department of Health,NHS Sheffield CCG,31/03/2018,C&M-PMS Out of Hours Opt Outs,PRC DELEGATED CO-COMMISSIONING,PARK HEALTH CENTRE,21222221,83.19 
Department of Health,NHS Sheffield CCG,31/03/2018,C&M-PMS PCO Seniority,PRC DELEGATED CO-COMMISSIONING,PARK HEALTH CENTRE,21222221,"2,835.17 "
Department of Health,NHS Sheffield CCG,31/03/2018,C&M-PMS Prem Notional Rent,PRC DELEGATED CO-COMMISSIONING,PARK HEALTH CENTRE,21222221,"6,000.00 "
Department of Health,NHS Sheffield CCG,31/03/2018,C&M-PMS Prem Water Rates,PRC DELEGATED CO-COMMISSIONING,PARK HEALTH CENTRE,21222221,405.71 
Department of Health,NHS Sheffield CCG,31/03/2018,C&M-PMS QOF Aspiration,PRC DELEGATED CO-COMMISSIONING,PARK HEALTH CENTRE,21222221,"4,293.17 "
Department of Health,NHS Sheffield CCG,31/03/2018,C&M-PMS Contract Value,PRC DELEGATED CO-COMMISSIONING,PITSMOOR SURGERY,21222223,"76,031.60 "
Department of Health,NHS Sheffield CCG,31/03/2018,C&M-PMS DES Extended Hours Access,PRC DELEGATED CO-COMMISSIONING,PITSMOOR SURGERY,21222223,"4,493.98 "
Department of Health,NHS Sheffield CCG,31/03/2018,C&M-PMS Out of Hours Opt Outs,PRC DELEGATED CO-COMMISSIONING,PITSMOOR SURGERY,21222223,84.26 
Department of Health,NHS Sheffield CCG,31/03/2018,C&M-PMS PCO Seniority,PRC DELEGATED CO-COMMISSIONING,PITSMOOR SURGERY,21222223,"3,075.58 "
Department of Health,NHS Sheffield CCG,31/03/2018,C&M-PMS Prem Notional Rent,PRC DELEGATED CO-COMMISSIONING,PITSMOOR SURGERY,21222223,"9,650.00 "
Department of Health,NHS Sheffield CCG,31/03/2018,C&M-PMS QOF Aspiration,PRC DELEGATED CO-COMMISSIONING,PITSMOOR SURGERY,21222223,"7,463.31 "
Department of Health,NHS Sheffield CCG,31/03/2018,C&M-PMS Contract Value,PRC DELEGATED CO-COMMISSIONING,PORTER BROOK MEDICAL CENTRE,21222224,"(9,228.67)"
Department of Health,NHS Sheffield CCG,31/03/2018,C&M-PMS GP Statutory Levy,PRC DELEGATED CO-COMMISSIONING,PORTER BROOK MEDICAL CENTRE,21222224,(876.69)
Department of Health,NHS Sheffield CCG,31/03/2018,C&M-PMS Out of Hours Opt Outs,PRC DELEGATED CO-COMMISSIONING,PORTER BROOK MEDICAL CENTRE,21222224,"(7,926.46)"
Department of Health,NHS Sheffield CCG,31/03/2018,C&M-PMS Voluntary Levy,PRC DELEGATED CO-COMMISSIONING,PORTER BROOK MEDICAL CENTRE,21222224,(146.12)
Department of Health,NHS Sheffield CCG,31/03/2018,C&M-PMS Contract Value,PRC DELEGATED CO-COMMISSIONING,PORTER BROOK MEDICAL CENTRE,21222225,"167,759.15 "
Department of Health,NHS Sheffield CCG,31/03/2018,C&M-PMS DES Extended Hours Access,PRC DELEGATED CO-COMMISSIONING,PORTER BROOK MEDICAL CENTRE,21222225,"13,326.52 "
Department of Health,NHS Sheffield CCG,31/03/2018,C&M-PMS Funding Differential Review,PRC DELEGATED CO-COMMISSIONING,PORTER BROOK MEDICAL CENTRE,21222225,"5,112.08 "
Department of Health,NHS Sheffield CCG,31/03/2018,C&M-PMS Out of Hours Opt Outs,PRC DELEGATED CO-COMMISSIONING,PORTER BROOK MEDICAL CENTRE,21222225,459.56 
Department of Health,NHS Sheffield CCG,31/03/2018,C&M-PMS PCO Seniority,PRC DELEGATED CO-COMMISSIONING,PORTER BROOK MEDICAL CENTRE,21222225,"8,769.54 "
Department of Health,NHS Sheffield CCG,31/03/2018,C&M-PMS Prem Actual Rent,PRC DELEGATED CO-COMMISSIONING,PORTER BROOK MEDICAL CENTRE,21222225,"1,333.33 "
Department of Health,NHS Sheffield CCG,31/03/2018,C&M-PMS Prem Notional Rent,PRC DELEGATED CO-COMMISSIONING,PORTER BROOK MEDICAL CENTRE,21222225,"9,666.66 "
Department of Health,NHS Sheffield CCG,31/03/2018,C&M-PMS QOF Aspiration,PRC DELEGATED CO-COMMISSIONING,PORTER BROOK MEDICAL CENTRE,21222225,"8,899.04 "
Department of Health,NHS Sheffield CCG,31/03/2018,Clinical&Medical-Commercial Sector,PATIENT TRANSPORT,PREMIER CARE DIRECT LTD,21260193,"91,807.22 "
Department of Health,NHS Sheffield CCG,31/03/2018,C&M-APMS DES Extended Hours Access,GP FORWARD VIEW,PRIMARY CARE SHEFFIELD LTD,21335032,"289,935.17 "
Department of Health,NHS Sheffield CCG,31/03/2018,C&M-APMS DES Extended Hours Access,GP FORWARD VIEW,PRIMARY CARE SHEFFIELD LTD,21428312,"289,935.16 "
Department of Health,NHS Sheffield CCG,31/03/2018,C&M-OES Childrens Schemes,LOCAL ENHANCED SERVICES,PRIMARY EYECARE (SHEFFIELD) LTD,21310214,"2,225.00 "
Department of Health,NHS Sheffield CCG,31/03/2018,C&M-OES Glaucoma,LOCAL ENHANCED SERVICES,PRIMARY EYECARE (SHEFFIELD) LTD,21310214,630.00 
Department of Health,NHS Sheffield CCG,31/03/2018,C&M-OES Intra-ocular Ocular Hypertn,LOCAL ENHANCED SERVICES,PRIMARY EYECARE (SHEFFIELD) LTD,21310214,500.00 
Department of Health,NHS Sheffield CCG,31/03/2018,C&M-OES PEARS,LOCAL ENHANCED SERVICES,PRIMARY EYECARE (SHEFFIELD) LTD,21310214,"22,555.50 "
Department of Health,NHS Sheffield CCG,31/03/2018,C&M-PMS Contract Value,PRC DELEGATED CO-COMMISSIONING,RICHMOND MEDICAL CENTRE,21222227,"62,700.99 "
Department of Health,NHS Sheffield CCG,31/03/2018,C&M-PMS DES Extended Hours Access,PRC DELEGATED CO-COMMISSIONING,RICHMOND MEDICAL CENTRE,21222227,"4,047.00 "
Department of Health,NHS Sheffield CCG,31/03/2018,C&M-PMS Funding Differential Review,PRC DELEGATED CO-COMMISSIONING,RICHMOND MEDICAL CENTRE,21222227,"1,802.33 "
Department of Health,NHS Sheffield CCG,31/03/2018,C&M-PMS PCO Seniority,PRC DELEGATED CO-COMMISSIONING,RICHMOND MEDICAL CENTRE,21222227,"2,364.66 "
Department of Health,NHS Sheffield CCG,31/03/2018,C&M-PMS Prem Notional Rent,PRC DELEGATED CO-COMMISSIONING,RICHMOND MEDICAL CENTRE,21222227,"4,731.00 "
Department of Health,NHS Sheffield CCG,31/03/2018,C&M-PMS QOF Aspiration,PRC DELEGATED CO-COMMISSIONING,RICHMOND MEDICAL CENTRE,21222227,"7,754.77 "
Department of Health,NHS Sheffield CCG,31/03/2018,Cont Care-Physical Disab (<65),CHC ADULT FULLY FUNDED,ROSEBERRY CARE CENTRES,21309910,"26,502.64 "
Department of Health,NHS Sheffield CCG,31/03/2018,Cont Care-Funded Nursing Care Allow,FUNDED NURSING CARE,ROSEBERRY CARE CENTRES,21309985,"32,367.80 "
Department of Health,NHS Sheffield CCG,31/03/2018,Cont Care-Physical Disab (<65),CHC ADULT FULLY FUNDED,ROSEBERRY CARE CENTRES,21310029,"38,415.38 "
Department of Health,NHS Sheffield CCG,31/03/2018,Hcare Srv Rec Fdtn Trust-Contract Baseline,ACUTE COMMISSIONING,ROTHERHAM NHS FOUNDATION TRUST,21166122,"429,401.00 "
Department of Health,NHS Sheffield CCG,31/03/2018,Miscellaneous Expenditure (L9),CLINICAL LEADS,ROTHERHAM NHS FOUNDATION TRUST,21235764,"70,000.00 "
Department of Health,NHS Sheffield CCG,31/03/2018,Computer Hardware Purch,END OF LIFE,ROTHERHAM NHS FOUNDATION TRUST,21383390,"21,000.00 "
Department of Health,NHS Sheffield CCG,31/03/2018,Computer Software/License,END OF LIFE,ROTHERHAM NHS FOUNDATION TRUST,21383390,"35,000.00 "
Department of Health,NHS Sheffield CCG,31/03/2018,Training Expenses,END OF LIFE,ROTHERHAM NHS FOUNDATION TRUST,21383390,"1,596.00 "
Department of Health,NHS Sheffield CCG,31/03/2018,C&M-PMS Contract Value,PRC DELEGATED CO-COMMISSIONING,RUSTLINGS ROAD MEDICAL CENTRE,21222231,"26,762.24 "
Department of Health,NHS Sheffield CCG,31/03/2018,C&M-PMS Funding Differential Review,PRC DELEGATED CO-COMMISSIONING,RUSTLINGS ROAD MEDICAL CENTRE,21222231,"1,235.92 "
Department of Health,NHS Sheffield CCG,31/03/2018,C&M-PMS Out of Hours Opt Outs,PRC DELEGATED CO-COMMISSIONING,RUSTLINGS ROAD MEDICAL CENTRE,21222231,15.48 
Department of Health,NHS Sheffield CCG,31/03/2018,C&M-PMS PCO Seniority,PRC DELEGATED CO-COMMISSIONING,RUSTLINGS ROAD MEDICAL CENTRE,21222231,"2,116.58 "
Department of Health,NHS Sheffield CCG,31/03/2018,C&M-PMS Prem Notional Rent,PRC DELEGATED CO-COMMISSIONING,RUSTLINGS ROAD MEDICAL CENTRE,21222231,"1,167.92 "
Department of Health,NHS Sheffield CCG,31/03/2018,C&M-PMS QOF Aspiration,PRC DELEGATED CO-COMMISSIONING,RUSTLINGS ROAD MEDICAL CENTRE,21222231,"2,481.56 "
Department of Health,NHS Sheffield CCG,31/03/2018,Cont Care-Physical Disab (<65),CHC ADULT FULLY FUNDED,SEVEN HILLS NURSING HOME,21310048,"34,589.90 "
Department of Health,NHS Sheffield CCG,31/03/2018,C&M-GMS Cost of Drugs -Prescribing,LOCAL ENHANCED SERVICES,SHARROW LANE MEDICAL CENTRE,21472517,482.99 
Department of Health,NHS Sheffield CCG,31/03/2018,C&M-GMS DES Extended Hours Access,PRC DELEGATED CO-COMMISSIONING,SHARROW LANE MEDICAL CENTRE,21472517,"1,822.58 "
Department of Health,NHS Sheffield CCG,31/03/2018,C&M-GMS Global Sum,PRC DELEGATED CO-COMMISSIONING,SHARROW LANE MEDICAL CENTRE,21472517,"22,033.12 "
Department of Health,NHS Sheffield CCG,31/03/2018,C&M-GMS MPIG Correction Factor,PRC DELEGATED CO-COMMISSIONING,SHARROW LANE MEDICAL CENTRE,21472517,"2,940.48 "
Department of Health,NHS Sheffield CCG,31/03/2018,C&M-GMS PCO Seniority,PRC DELEGATED CO-COMMISSIONING,SHARROW LANE MEDICAL CENTRE,21472517,275.14 
Department of Health,NHS Sheffield CCG,31/03/2018,C&M-GMS Prem Notional Rent,PRC DELEGATED CO-COMMISSIONING,SHARROW LANE MEDICAL CENTRE,21472517,"2,658.33 "
Department of Health,NHS Sheffield CCG,31/03/2018,C&M-GMS Prof Fees Prescribing,PRC DELEGATED CO-COMMISSIONING,SHARROW LANE MEDICAL CENTRE,21472517,92.78 
Department of Health,NHS Sheffield CCG,31/03/2018,C&M-GMS QOF Aspiration,PRC DELEGATED CO-COMMISSIONING,SHARROW LANE MEDICAL CENTRE,21472517,"2,727.76 "
Department of Health,NHS Sheffield CCG,31/03/2018,Hcare Srv Rec Fdtn Trust-CQUIN,ACUTE CHILDRENS SERVICES,SHEFFIELD CHILDRENS NHS FOUNDATION TRUST,21166107,"32,706.00 "
Department of Health,NHS Sheffield CCG,31/03/2018,Hcare Srv Rec Fdtn Trust-CQUIN,COMMUNITY SERVICES,SHEFFIELD CHILDRENS NHS FOUNDATION TRUST,21166107,"3,728.00 "
Department of Health,NHS Sheffield CCG,31/03/2018,Hcare Srv Rec Fdtn Trust-Contract Baseline,ACUTE CHILDRENS SERVICES,SHEFFIELD CHILDRENS NHS FOUNDATION TRUST,21166107,"235,977.00 "
Department of Health,NHS Sheffield CCG,31/03/2018,Hcare Srv Rec Fdtn Trust-Contract Baseline,CHILD AND ADOLESCENT MENTAL HEALTH,SHEFFIELD CHILDRENS NHS FOUNDATION TRUST,21166107,"367,086.00 "
Department of Health,NHS Sheffield CCG,31/03/2018,Hcare Srv Rec Fdtn Trust-Contract Baseline,COMMUNITY SERVICES,SHEFFIELD CHILDRENS NHS FOUNDATION TRUST,21166107,"298,241.00 "
Department of Health,NHS Sheffield CCG,31/03/2018,Hcare Srv Rec Fdtn Trust-Contract Baseline,HIGH COST DRUGS,SHEFFIELD CHILDRENS NHS FOUNDATION TRUST,21166107,"40,649.00 "
Department of Health,NHS Sheffield CCG,31/03/2018,Hcare Srv Rec Fdtn Trust-Contract Baseline,MENTAL HEALTH CONTRACTS,SHEFFIELD CHILDRENS NHS FOUNDATION TRUST,21166107,"5,277.00 "
Department of Health,NHS Sheffield CCG,31/03/2018,Hcare Srv Rec Fdtn Trust-Contract Baseline,PLANNED CARE,SHEFFIELD CHILDRENS NHS FOUNDATION TRUST,21166107,"965,735.00 "
Department of Health,NHS Sheffield CCG,31/03/2018,Hcare Srv Rec Fdtn Trust-Contract Baseline,SAFEGUARDING,SHEFFIELD CHILDRENS NHS FOUNDATION TRUST,21166107,"29,800.00 "
Department of Health,NHS Sheffield CCG,31/03/2018,Hcare Srv Rec Fdtn Trust-Contract Baseline,URGENT CARE,SHEFFIELD CHILDRENS NHS FOUNDATION TRUST,21166107,"988,358.00 "
Department of Health,NHS Sheffield CCG,31/03/2018,Hcare Srv Rec Fdtn Trust-Non Contract,BEREAVEMENT SERVICE,SHEFFIELD CHILDRENS NHS FOUNDATION TRUST,21224723,"50,000.00 "
Department of Health,NHS Sheffield CCG,31/03/2018,Hcare Srv Rec Fdtn Trust-Non Contract,BEREAVEMENT SERVICE,SHEFFIELD CHILDRENS NHS FOUNDATION TRUST,21226770,"450,000.00 "
Department of Health,NHS Sheffield CCG,31/03/2018,Hcare Srv Rec Fdtn Trust-Non Contract,BEREAVEMENT SERVICE,SHEFFIELD CHILDRENS NHS FOUNDATION TRUST,21226800,"(50,000.00)"
Department of Health,NHS Sheffield CCG,31/03/2018,Hcare Srv Rec Fdtn Trust-Contract Baseline,ACUTE CHILDRENS SERVICES,SHEFFIELD CHILDRENS NHS FOUNDATION TRUST,21429879,"91,092.00 "
Department of Health,NHS Sheffield CCG,31/03/2018,Hcare Srv Rec Fdtn Trust-Contract Baseline,CHILD AND ADOLESCENT MENTAL HEALTH,SHEFFIELD CHILDRENS NHS FOUNDATION TRUST,21429879,"817,035.00 "
Department of Health,NHS Sheffield CCG,31/03/2018,Hcare Srv Rec Fdtn Trust-Contract Baseline,PLANNED CARE,SHEFFIELD CHILDRENS NHS FOUNDATION TRUST,21429879,"308,174.00 "
Department of Health,NHS Sheffield CCG,31/03/2018,Hcare Srv Rec Fdtn Trust-Contract Baseline,SAFEGUARDING,SHEFFIELD CHILDRENS NHS FOUNDATION TRUST,21429879,"27,489.00 "
Department of Health,NHS Sheffield CCG,31/03/2018,Hcare Srv Rec Fdtn Trust-Contract Baseline,ACUTE CHILDRENS SERVICES,SHEFFIELD CHILDRENS NHS FOUNDATION TRUST,21524287,"115,429.00 "
Department of Health,NHS Sheffield CCG,31/03/2018,Hcare Srv Rec Fdtn Trust-CQUIN,ACUTE CHILDRENS SERVICES,SHEFFIELD CHILDRENS NHS FOUNDATION TRUST,21524297,"30,154.00 "
Department of Health,NHS Sheffield CCG,31/03/2018,Hcare Srv Rec Fdtn Trust-CQUIN,COMMUNITY SERVICES,SHEFFIELD CHILDRENS NHS FOUNDATION TRUST,21524297,"3,728.00 "
Department of Health,NHS Sheffield CCG,31/03/2018,Hcare Srv Rec Fdtn Trust-Contract Baseline,ACUTE CHILDRENS SERVICES,SHEFFIELD CHILDRENS NHS FOUNDATION TRUST,21524297,"28,946.00 "
Department of Health,NHS Sheffield CCG,31/03/2018,Hcare Srv Rec Fdtn Trust-Contract Baseline,CHILD AND ADOLESCENT MENTAL HEALTH,SHEFFIELD CHILDRENS NHS FOUNDATION TRUST,21524297,"(1,000.00)"
Department of Health,NHS Sheffield CCG,31/03/2018,Hcare Srv Rec Fdtn Trust-Contract Baseline,HIGH COST DRUGS,SHEFFIELD CHILDRENS NHS FOUNDATION TRUST,21524297,"15,869.00 "
Department of Health,NHS Sheffield CCG,31/03/2018,Hcare Srv Rec Fdtn Trust-Contract Baseline,MENTAL HEALTH CONTRACTS,SHEFFIELD CHILDRENS NHS FOUNDATION TRUST,21524297,"(2,555.00)"
Department of Health,NHS Sheffield CCG,31/03/2018,Hcare Srv Rec Fdtn Trust-Contract Baseline,PLANNED CARE,SHEFFIELD CHILDRENS NHS FOUNDATION TRUST,21524297,"(95,735.00)"
Department of Health,NHS Sheffield CCG,31/03/2018,Hcare Srv Rec Fdtn Trust-Contract Baseline,SAFEGUARDING,SHEFFIELD CHILDRENS NHS FOUNDATION TRUST,21524297,"3,831.00 "
Department of Health,NHS Sheffield CCG,31/03/2018,Hcare Srv Rec Fdtn Trust-Contract Baseline,URGENT CARE,SHEFFIELD CHILDRENS NHS FOUNDATION TRUST,21524297,"(41,472.00)"
Department of Health,NHS Sheffield CCG,31/03/2018,Hcare Srv Rec Fdtn Trust-Contract Baseline,ACUTE CHILDRENS SERVICES,SHEFFIELD CHILDRENS NHS FOUNDATION TRUST,21524848,"(115,429.00)"
Department of Health,NHS Sheffield CCG,31/03/2018,Hcare Srv Rec Fdtn Trust-CQUIN,ACUTE CHILDRENS SERVICES,SHEFFIELD CHILDRENS NHS FOUNDATION TRUST,21524852,427.00 
Department of Health,NHS Sheffield CCG,31/03/2018,Hcare Srv Rec Fdtn Trust-Contract Baseline,ACUTE CHILDRENS SERVICES,SHEFFIELD CHILDRENS NHS FOUNDATION TRUST,21524852,"21,830.49 "
Department of Health,NHS Sheffield CCG,31/03/2018,Hcare Srv Rec Fdtn Trust-Contract Baseline,CHILD AND ADOLESCENT MENTAL HEALTH,SHEFFIELD CHILDRENS NHS FOUNDATION TRUST,21524852,"(1,000.00)"
Department of Health,NHS Sheffield CCG,31/03/2018,Hcare Srv Rec Fdtn Trust-Contract Baseline,HIGH COST DRUGS,SHEFFIELD CHILDRENS NHS FOUNDATION TRUST,21524852,"25,309.00 "
Department of Health,NHS Sheffield CCG,31/03/2018,Hcare Srv Rec Fdtn Trust-Contract Baseline,PLANNED CARE,SHEFFIELD CHILDRENS NHS FOUNDATION TRUST,21524852,"1,167.00 "
Department of Health,NHS Sheffield CCG,31/03/2018,Hcare Srv Rec Fdtn Trust-Contract Baseline,SAFEGUARDING,SHEFFIELD CHILDRENS NHS FOUNDATION TRUST,21524852,"3,831.00 "
Department of Health,NHS Sheffield CCG,31/03/2018,Hcare Srv Rec Fdtn Trust-Contract Baseline,URGENT CARE,SHEFFIELD CHILDRENS NHS FOUNDATION TRUST,21524852,(549.00)
Department of Health,NHS Sheffield CCG,31/03/2018,Cont Care- Prior Year Payments,CHC ADULT FULLY FUNDED,SHEFFIELD CITY COUNCIL,21166237,"154,250.58 "
Department of Health,NHS Sheffield CCG,31/03/2018,Cont Care-Physical Disab (65+),CHC ADULT FULLY FUNDED,SHEFFIELD CITY COUNCIL,21429787,"836,259.09 "
Department of Health,NHS Sheffield CCG,31/03/2018,Clinical&Medical-Othe Public Sector,COMMUNITY SERVICES,SHEFFIELD CITY COUNCIL,21454579,"21,831.00 "
Department of Health,NHS Sheffield CCG,31/03/2018,Clinical&Medical-Othe Public Sector,MENTAL HEALTH SERVICES - COLLABORATIVE COMMISSIONING,SHEFFIELD CITY COUNCIL,21454579,"16,919.00 "
Department of Health,NHS Sheffield CCG,31/03/2018,Clinical&Medical-Othe Public Sector,REABLEMENT,SHEFFIELD CITY COUNCIL,21454579,"160,417.00 "
Department of Health,NHS Sheffield CCG,31/03/2018,Clinical&Medical-Othe Public Sector,SAFEGUARDING,SHEFFIELD CITY COUNCIL,21454579,"15,324.00 "
Department of Health,NHS Sheffield CCG,31/03/2018,Soc Care-Joint H&C Teams/Working,INTERMEDIATE CARE,SHEFFIELD CITY COUNCIL,21454579,"88,060.00 "
Department of Health,NHS Sheffield CCG,31/03/2018,Soc Care-Learn Disab Servs,LEARNING DIFFICULTIES,SHEFFIELD CITY COUNCIL,21454579,"166,667.00 "
Department of Health,NHS Sheffield CCG,31/03/2018,Soc Care-Other Soc Care,REABLEMENT,SHEFFIELD CITY COUNCIL,21454579,"467,750.00 "
Department of Health,NHS Sheffield CCG,31/03/2018,Soc Care-Re-ablement services,REABLEMENT,SHEFFIELD CITY COUNCIL,21454579,"63,387.00 "
Department of Health,NHS Sheffield CCG,31/03/2018,Soc Care-Support Prim Care,COMMUNITY SERVICES,SHEFFIELD CITY COUNCIL,21454579,"55,000.00 "
Department of Health,NHS Sheffield CCG,31/03/2018,Cont Care- Children,CHC CHILDREN,SHEFFIELD CITY COUNCIL,21505495,"38,624.66 "
Department of Health,NHS Sheffield CCG,31/03/2018,Soc Care-Other Soc Care,REABLEMENT,SHEFFIELD CITY COUNCIL,21530757,"3,000,000.00 "
Department of Health,NHS Sheffield CCG,31/03/2018,C&M-APMS Contract Value,PRC DELEGATED CO-COMMISSIONING,SHEFFIELD HEALTH & SOCIAL CARE NHS FOUNDATION TRUST,21222872,"119,696.37 "
Department of Health,NHS Sheffield CCG,31/03/2018,C&M-APMS DES Extended Hours Access,PRC DELEGATED CO-COMMISSIONING,SHEFFIELD HEALTH & SOCIAL CARE NHS FOUNDATION TRUST,21222872,"7,777.65 "
Department of Health,NHS Sheffield CCG,31/03/2018,C&M-APMS OOH Opt Outs,PRC DELEGATED CO-COMMISSIONING,SHEFFIELD HEALTH & SOCIAL CARE NHS FOUNDATION TRUST,21222872,61.59 
Department of Health,NHS Sheffield CCG,31/03/2018,C&M-APMS Prem Actual Rent,PRC DELEGATED CO-COMMISSIONING,SHEFFIELD HEALTH & SOCIAL CARE NHS FOUNDATION TRUST,21222872,"5,169.68 "
Department of Health,NHS Sheffield CCG,31/03/2018,C&M-APMS Prem Healthcentre Rent,PRC DELEGATED CO-COMMISSIONING,SHEFFIELD HEALTH & SOCIAL CARE NHS FOUNDATION TRUST,21222872,"60,362.95 "
Department of Health,NHS Sheffield CCG,31/03/2018,C&M-APMS Prem Notional Rent,PRC DELEGATED CO-COMMISSIONING,SHEFFIELD HEALTH & SOCIAL CARE NHS FOUNDATION TRUST,21222872,"2,804.17 "
Department of Health,NHS Sheffield CCG,31/03/2018,C&M-PMS QOF Aspiration,PRC DELEGATED CO-COMMISSIONING,SHEFFIELD HEALTH & SOCIAL CARE NHS FOUNDATION TRUST,21222872,"12,657.74 "
Department of Health,NHS Sheffield CCG,31/03/2018,C&M-APMS Contract Value,PRC DELEGATED CO-COMMISSIONING,SHEFFIELD HEALTH & SOCIAL CARE NHS FOUNDATION TRUST,21222876,"26,563.38 "
Department of Health,NHS Sheffield CCG,31/03/2018,C&M-APMS DES Extended Hours Access,PRC DELEGATED CO-COMMISSIONING,SHEFFIELD HEALTH & SOCIAL CARE NHS FOUNDATION TRUST,21222876,"2,150.80 "
Department of Health,NHS Sheffield CCG,31/03/2018,C&M-APMS OOH Opt Outs,PRC DELEGATED CO-COMMISSIONING,SHEFFIELD HEALTH & SOCIAL CARE NHS FOUNDATION TRUST,21222876,35.03 
Department of Health,NHS Sheffield CCG,31/03/2018,C&M-PMS QOF Aspiration,PRC DELEGATED CO-COMMISSIONING,SHEFFIELD HEALTH & SOCIAL CARE NHS FOUNDATION TRUST,21222876,"1,256.00 "
Department of Health,NHS Sheffield CCG,31/03/2018,Hcare Srv Rec Fdtn Trust-Contract Baseline,MENTAL HEALTH CONTRACTS,SHEFFIELD HEALTH & SOCIAL CARE NHS FOUNDATION TRUST,21334878,"388,287.93 "
Department of Health,NHS Sheffield CCG,31/03/2018,Hcare Srv Rec Fdtn Trust-Contract Baseline,MENTAL HEALTH CONTRACTS,SHEFFIELD HEALTH & SOCIAL CARE NHS FOUNDATION TRUST,21334947,"(129,860.16)"
Department of Health,NHS Sheffield CCG,31/03/2018,Hcare Srv Rec Fdtn Trust-Contract Baseline,MENTAL HEALTH CONTRACTS,SHEFFIELD HEALTH & SOCIAL CARE NHS FOUNDATION TRUST,21334949,"4,749,726.14 "
Department of Health,NHS Sheffield CCG,31/03/2018,Hcare Srv Rec Fdtn Trust-Contract Baseline,MENTAL HEALTH CONTRACTS,SHEFFIELD HEALTH & SOCIAL CARE NHS FOUNDATION TRUST,21335068,"43,493.80 "
Department of Health,NHS Sheffield CCG,31/03/2018,Cont Care-NHSFT-Adult 100% Funded,CHC ADULT FULLY FUNDED,SHEFFIELD HEALTH & SOCIAL CARE NHS FOUNDATION TRUST,21428394,"236,256.12 "
Department of Health,NHS Sheffield CCG,31/03/2018,C&M-GMS Practice Transformational Support,LOCAL ENHANCED SERVICES,SHEFFIELD LOCAL MEDICAL COMMITTEE STATUTORY LEVY,21543485,"35,700.00 "
Department of Health,NHS Sheffield CCG,31/03/2018,Hlthcre-Foundation Trsts,CLINICAL LEADS,SHEFFIELD TEACHING HOSPITALS NHS FOUNDATION TRUST,21107250,"147,332.00 "
Department of Health,NHS Sheffield CCG,31/03/2018,Hcare Srv Rec Fdtn Trust-Contract Baseline,ACUTE COMMISSIONING,SHEFFIELD TEACHING HOSPITALS NHS FOUNDATION TRUST,21146775,"446,076.00 "
Department of Health,NHS Sheffield CCG,31/03/2018,Hcare Srv Rec Fdtn Trust-Contract Baseline,ACUTE COMMISSIONING,SHEFFIELD TEACHING HOSPITALS NHS FOUNDATION TRUST,21146793,"3,826,133.00 "
Department of Health,NHS Sheffield CCG,31/03/2018,Hcare Srv Rec Fdtn Trust-Contract Baseline,ACUTE COMMISSIONING,SHEFFIELD TEACHING HOSPITALS NHS FOUNDATION TRUST,21146795,"26,312,884.00 "
Department of Health,NHS Sheffield CCG,31/03/2018,Hcare Srv Rec Fdtn Trust-Contract Baseline,ACUTE COMMISSIONING,SHEFFIELD TEACHING HOSPITALS NHS FOUNDATION TRUST,21146796,"316,656.00 "
Department of Health,NHS Sheffield CCG,31/03/2018,Hcare Srv Rec Fdtn Trust-Contract Baseline,ACUTE COMMISSIONING,SHEFFIELD TEACHING HOSPITALS NHS FOUNDATION TRUST,21146797,"1,101,688.00 "
Department of Health,NHS Sheffield CCG,31/03/2018,Hcare Srv Rec Fdtn Trust-Contract Baseline,ACUTE COMMISSIONING,SHEFFIELD TEACHING HOSPITALS NHS FOUNDATION TRUST,21226762,"7,600,131.00 "
Department of Health,NHS Sheffield CCG,31/03/2018,Hcare Srv Rec Fdtn Trust-Contract Baseline,ACUTE COMMISSIONING,SHEFFIELD TEACHING HOSPITALS NHS FOUNDATION TRUST,21226774,"(798,032.00)"
Department of Health,NHS Sheffield CCG,31/03/2018,Hcare Srv Rec Fdtn Trust-Contract Baseline,ACUTE COMMISSIONING,SHEFFIELD TEACHING HOSPITALS NHS FOUNDATION TRUST,21226777,"110,741.00 "
Department of Health,NHS Sheffield CCG,31/03/2018,Hcare Srv Rec Fdtn Trust-Contract Baseline,ACUTE COMMISSIONING,SHEFFIELD TEACHING HOSPITALS NHS FOUNDATION TRUST,21226779,"(1,028,572.00)"
Department of Health,NHS Sheffield CCG,31/03/2018,Hcare Srv Rec Fdtn Trust-Non Contract,ACUTE COMMISSIONING,SHEFFIELD TEACHING HOSPITALS NHS FOUNDATION TRUST,21226780,"202,500.00 "
Department of Health,NHS Sheffield CCG,31/03/2018,Hcare Srv Rec Fdtn Trust-Contract Baseline,ACUTE COMMISSIONING,SHEFFIELD TEACHING HOSPITALS NHS FOUNDATION TRUST,21226781,"(980,646.00)"
Department of Health,NHS Sheffield CCG,31/03/2018,Hcare Srv Rec Fdtn Trust-Contract Baseline,ACUTE COMMISSIONING,SHEFFIELD TEACHING HOSPITALS NHS FOUNDATION TRUST,21226786,"(296,366.00)"
Department of Health,NHS Sheffield CCG,31/03/2018,Programme Support Costs,ACUTE ELDERLY SERVICES,SHEFFIELD TEACHING HOSPITALS NHS FOUNDATION TRUST,21282700,"(50,040.00)"
Department of Health,NHS Sheffield CCG,31/03/2018,Hlthcre-Foundation Trsts,CLINICAL LEADS,SHEFFIELD TEACHING HOSPITALS NHS FOUNDATION TRUST,21292834,"38,485.00 "
Department of Health,NHS Sheffield CCG,31/03/2018,NHS Payables <1Yr-Non PO Accruals,ACUTE COMMISSIONING,SHEFFIELD TEACHING HOSPITALS NHS FOUNDATION TRUST,21429802,"26,312,884.00 "
Department of Health,NHS Sheffield CCG,31/03/2018,NHS Payables <1Yr-Non PO Accruals,ACUTE COMMISSIONING,SHEFFIELD TEACHING HOSPITALS NHS FOUNDATION TRUST,21429804,"1,101,688.00 "
Department of Health,NHS Sheffield CCG,31/03/2018,Computer Hardware Purch,END OF LIFE,SHEFFIELD TEACHING HOSPITALS NHS FOUNDATION TRUST,21441728,"43,485.00 "
Department of Health,NHS Sheffield CCG,31/03/2018,Computer Software/License,END OF LIFE,SHEFFIELD TEACHING HOSPITALS NHS FOUNDATION TRUST,21441728,"26,825.00 "
Department of Health,NHS Sheffield CCG,31/03/2018,C&M-GMS Cost of Drugs -Prescribing,LOCAL ENHANCED SERVICES,SHIREGREEN MEDICAL CENTRE,21472525,"2,876.84 "
Department of Health,NHS Sheffield CCG,31/03/2018,C&M-GMS DES Extended Hours Access,PRC DELEGATED CO-COMMISSIONING,SHIREGREEN MEDICAL CENTRE,21472525,"3,676.98 "
Department of Health,NHS Sheffield CCG,31/03/2018,C&M-GMS Global Sum,PRC DELEGATED CO-COMMISSIONING,SHIREGREEN MEDICAL CENTRE,21472525,"55,776.63 "
Department of Health,NHS Sheffield CCG,31/03/2018,C&M-GMS MPIG Correction Factor,PRC DELEGATED CO-COMMISSIONING,SHIREGREEN MEDICAL CENTRE,21472525,680.53 
Department of Health,NHS Sheffield CCG,31/03/2018,C&M-GMS PCO Seniority,PRC DELEGATED CO-COMMISSIONING,SHIREGREEN MEDICAL CENTRE,21472525,"3,240.59 "
Department of Health,NHS Sheffield CCG,31/03/2018,C&M-GMS Prem Cost Rent,PRC DELEGATED CO-COMMISSIONING,SHIREGREEN MEDICAL CENTRE,21472525,"1,792.33 "
Department of Health,NHS Sheffield CCG,31/03/2018,C&M-GMS Prem Notional Rent,PRC DELEGATED CO-COMMISSIONING,SHIREGREEN MEDICAL CENTRE,21472525,"5,375.00 "
Department of Health,NHS Sheffield CCG,31/03/2018,C&M-GMS Prof Fees Prescribing,PRC DELEGATED CO-COMMISSIONING,SHIREGREEN MEDICAL CENTRE,21472525,505.86 
Department of Health,NHS Sheffield CCG,31/03/2018,C&M-GMS QOF Aspiration,PRC DELEGATED CO-COMMISSIONING,SHIREGREEN MEDICAL CENTRE,21472525,"6,614.14 "
Department of Health,NHS Sheffield CCG,31/03/2018,C&M-PMS Contract Value,PRC DELEGATED CO-COMMISSIONING,SLOAN MEDICAL CENTRE,21222233,"90,886.23 "
Department of Health,NHS Sheffield CCG,31/03/2018,C&M-PMS DES Extended Hours Access,PRC DELEGATED CO-COMMISSIONING,SLOAN MEDICAL CENTRE,21222233,"6,070.50 "
Department of Health,NHS Sheffield CCG,31/03/2018,C&M-PMS Funding Differential Review,PRC DELEGATED CO-COMMISSIONING,SLOAN MEDICAL CENTRE,21222233,165.33 
Department of Health,NHS Sheffield CCG,31/03/2018,C&M-PMS Out of Hours Opt Outs,PRC DELEGATED CO-COMMISSIONING,SLOAN MEDICAL CENTRE,21222233,56.04 
Department of Health,NHS Sheffield CCG,31/03/2018,C&M-PMS PCO Seniority,PRC DELEGATED CO-COMMISSIONING,SLOAN MEDICAL CENTRE,21222233,"7,468.64 "
Department of Health,NHS Sheffield CCG,31/03/2018,C&M-PMS Prem Actual Rent,PRC DELEGATED CO-COMMISSIONING,SLOAN MEDICAL CENTRE,21222233,"15,535.83 "
Department of Health,NHS Sheffield CCG,31/03/2018,C&M-PMS Prem Notional Rent,PRC DELEGATED CO-COMMISSIONING,SLOAN MEDICAL CENTRE,21222233,608.33 
Department of Health,NHS Sheffield CCG,31/03/2018,C&M-PMS QOF Aspiration,PRC DELEGATED CO-COMMISSIONING,SLOAN MEDICAL CENTRE,21222233,"10,663.96 "
Department of Health,NHS Sheffield CCG,31/03/2018,C&M-PMS Contract Value,PRC DELEGATED CO-COMMISSIONING,SOTHALL MEDICAL CENTRE,21222235,"69,389.43 "
Department of Health,NHS Sheffield CCG,31/03/2018,C&M-PMS DES Extended Hours Access,PRC DELEGATED CO-COMMISSIONING,SOTHALL MEDICAL CENTRE,21222235,"4,864.48 "
Department of Health,NHS Sheffield CCG,31/03/2018,C&M-PMS Funding Differential Review,PRC DELEGATED CO-COMMISSIONING,SOTHALL MEDICAL CENTRE,21222235,"3,463.83 "
Department of Health,NHS Sheffield CCG,31/03/2018,C&M-PMS Out of Hours Opt Outs,PRC DELEGATED CO-COMMISSIONING,SOTHALL MEDICAL CENTRE,21222235,49.82 
Department of Health,NHS Sheffield CCG,31/03/2018,C&M-PMS PCO Seniority,PRC DELEGATED CO-COMMISSIONING,SOTHALL MEDICAL CENTRE,21222235,"6,147.00 "
Department of Health,NHS Sheffield CCG,31/03/2018,C&M-PMS Prem Healthcentre Rent,PRC DELEGATED CO-COMMISSIONING,SOTHALL MEDICAL CENTRE,21222235,"2,953.43 "
Department of Health,NHS Sheffield CCG,31/03/2018,C&M-PMS Prem Notional Rent,PRC DELEGATED CO-COMMISSIONING,SOTHALL MEDICAL CENTRE,21222235,"5,116.67 "
Department of Health,NHS Sheffield CCG,31/03/2018,C&M-PMS Prem Water Rates,PRC DELEGATED CO-COMMISSIONING,SOTHALL MEDICAL CENTRE,21222235,49.26 
Department of Health,NHS Sheffield CCG,31/03/2018,C&M-PMS QOF Aspiration,PRC DELEGATED CO-COMMISSIONING,SOTHALL MEDICAL CENTRE,21222235,"8,821.42 "
Department of Health,NHS Sheffield CCG,31/03/2018,Cont Care-Physical Disab (<65),CHC ADULT FULLY FUNDED,SOUTH YORKSHIRE HOUSING ASSOCIATION LTD,21226807,"99,621.22 "
Department of Health,NHS Sheffield CCG,31/03/2018,Clinical&Medical-Independent Sector,MENTAL HEALTH CONTRACTS,SOUTH YORKSHIRE HOUSING ASSOCIATION LTD,21310120,"34,435.00 "
Department of Health,NHS Sheffield CCG,31/03/2018,Cont Care- Adult 100% Fully Funded,CHC ADULT FULLY FUNDED,SOUTH YORKSHIRE HOUSING ASSOCIATION LTD,21310135,"25,500.00 "
Department of Health,NHS Sheffield CCG,31/03/2018,C&M-PMS Contract Value,PRC DELEGATED CO-COMMISSIONING,SOUTHEY GREEN MEDICAL CENTRE,21222237,"25,573.59 "
Department of Health,NHS Sheffield CCG,31/03/2018,C&M-PMS DES Extended Hours Access,PRC DELEGATED CO-COMMISSIONING,SOUTHEY GREEN MEDICAL CENTRE,21222237,"1,402.20 "
Department of Health,NHS Sheffield CCG,31/03/2018,C&M-PMS Funding Differential Review,PRC DELEGATED CO-COMMISSIONING,SOUTHEY GREEN MEDICAL CENTRE,21222237,127.58 
Department of Health,NHS Sheffield CCG,31/03/2018,C&M-PMS Out of Hours Opt Outs,PRC DELEGATED CO-COMMISSIONING,SOUTHEY GREEN MEDICAL CENTRE,21222237,15.12 
Department of Health,NHS Sheffield CCG,31/03/2018,C&M-PMS PCO Seniority,PRC DELEGATED CO-COMMISSIONING,SOUTHEY GREEN MEDICAL CENTRE,21222237,"1,262.74 "
Department of Health,NHS Sheffield CCG,31/03/2018,C&M-PMS Prem Notional Rent,PRC DELEGATED CO-COMMISSIONING,SOUTHEY GREEN MEDICAL CENTRE,21222237,"3,362.50 "
Department of Health,NHS Sheffield CCG,31/03/2018,C&M-PMS QOF Aspiration,PRC DELEGATED CO-COMMISSIONING,SOUTHEY GREEN MEDICAL CENTRE,21222237,"2,875.40 "
Department of Health,NHS Sheffield CCG,31/03/2018,Clinical&Medical-Independent Sector,NCAS/OATS,SPAMEDICA LTD,21454700,"50,100.40 "
Department of Health,NHS Sheffield CCG,31/03/2018,C&M-GMS Cost of Drugs -Prescribing,LOCAL ENHANCED SERVICES,STANNINGTON MEDICAL CENTRE,21472529,734.38 
Department of Health,NHS Sheffield CCG,31/03/2018,C&M-GMS Global Sum,PRC DELEGATED CO-COMMISSIONING,STANNINGTON MEDICAL CENTRE,21472529,"23,002.53 "
Department of Health,NHS Sheffield CCG,31/03/2018,C&M-GMS PCO Seniority,PRC DELEGATED CO-COMMISSIONING,STANNINGTON MEDICAL CENTRE,21472529,"1,477.36 "
Department of Health,NHS Sheffield CCG,31/03/2018,C&M-GMS Prem Notional Rent,PRC DELEGATED CO-COMMISSIONING,STANNINGTON MEDICAL CENTRE,21472529,"2,575.00 "
Department of Health,NHS Sheffield CCG,31/03/2018,C&M-GMS Prof Fees Prescribing,PRC DELEGATED CO-COMMISSIONING,STANNINGTON MEDICAL CENTRE,21472529,163.47 
Department of Health,NHS Sheffield CCG,31/03/2018,C&M-GMS QOF Aspiration,PRC DELEGATED CO-COMMISSIONING,STANNINGTON MEDICAL CENTRE,21472529,"3,253.08 "
Department of Health,NHS Sheffield CCG,31/03/2018,C&M-GMS Cost of Drugs -Prescribing,LOCAL ENHANCED SERVICES,STONECROFT MEDICAL CENTRE,21472527,"1,294.53 "
Department of Health,NHS Sheffield CCG,31/03/2018,C&M-GMS Global Sum,PRC DELEGATED CO-COMMISSIONING,STONECROFT MEDICAL CENTRE,21472527,"30,200.86 "
Department of Health,NHS Sheffield CCG,31/03/2018,C&M-GMS MPIG Correction Factor,PRC DELEGATED CO-COMMISSIONING,STONECROFT MEDICAL CENTRE,21472527,927.38 
Department of Health,NHS Sheffield CCG,31/03/2018,C&M-GMS PCO Seniority,PRC DELEGATED CO-COMMISSIONING,STONECROFT MEDICAL CENTRE,21472527,"2,248.36 "
Department of Health,NHS Sheffield CCG,31/03/2018,C&M-GMS Prem Notional Rent,PRC DELEGATED CO-COMMISSIONING,STONECROFT MEDICAL CENTRE,21472527,"2,808.33 "
Department of Health,NHS Sheffield CCG,31/03/2018,C&M-GMS Prem Water Rates,PRC DELEGATED CO-COMMISSIONING,STONECROFT MEDICAL CENTRE,21472527,199.93 
Department of Health,NHS Sheffield CCG,31/03/2018,C&M-GMS Prof Fees Prescribing,PRC DELEGATED CO-COMMISSIONING,STONECROFT MEDICAL CENTRE,21472527,229.74 
Department of Health,NHS Sheffield CCG,31/03/2018,C&M-GMS QOF Aspiration,PRC DELEGATED CO-COMMISSIONING,STONECROFT MEDICAL CENTRE,21472527,"4,224.91 "
Department of Health,NHS Sheffield CCG,31/03/2018,Clinical&Medical-Independent Sector,MENTAL HEALTH CONTRACTS,SUSASH GB LTD T/A EAGLE HOUSE,21310146,"30,092.00 "
Department of Health,NHS Sheffield CCG,31/03/2018,C&M-GMS Cost of Drugs -Prescribing,LOCAL ENHANCED SERVICES,TOTLEY RISE MEDICAL CENTRE,21472531,209.28 
Department of Health,NHS Sheffield CCG,31/03/2018,C&M-GMS Global Sum,PRC DELEGATED CO-COMMISSIONING,TOTLEY RISE MEDICAL CENTRE,21472531,"22,509.30 "
Department of Health,NHS Sheffield CCG,31/03/2018,C&M-GMS MPIG Correction Factor,PRC DELEGATED CO-COMMISSIONING,TOTLEY RISE MEDICAL CENTRE,21472531,154.70 
Department of Health,NHS Sheffield CCG,31/03/2018,C&M-GMS PCO Seniority,PRC DELEGATED CO-COMMISSIONING,TOTLEY RISE MEDICAL CENTRE,21472531,"1,842.60 "
Department of Health,NHS Sheffield CCG,31/03/2018,C&M-GMS Prem Notional Rent,PRC DELEGATED CO-COMMISSIONING,TOTLEY RISE MEDICAL CENTRE,21472531,"1,491.67 "
Department of Health,NHS Sheffield CCG,31/03/2018,C&M-GMS Prof Fees Prescribing,PRC DELEGATED CO-COMMISSIONING,TOTLEY RISE MEDICAL CENTRE,21472531,24.30 
Department of Health,NHS Sheffield CCG,31/03/2018,C&M-GMS QOF Aspiration,PRC DELEGATED CO-COMMISSIONING,TOTLEY RISE MEDICAL CENTRE,21472531,"2,269.92 "
Department of Health,NHS Sheffield CCG,31/03/2018,C&M-GMS Cost of Drugs -Prescribing,LOCAL ENHANCED SERVICES,TRAMWAYS MEDICAL CENTRE,21472533,"1,868.13 "
Department of Health,NHS Sheffield CCG,31/03/2018,C&M-GMS Global Sum,PRC DELEGATED CO-COMMISSIONING,TRAMWAYS MEDICAL CENTRE,21472533,"58,443.62 "
Department of Health,NHS Sheffield CCG,31/03/2018,C&M-GMS PCO Seniority,PRC DELEGATED CO-COMMISSIONING,TRAMWAYS MEDICAL CENTRE,21472533,"6,000.03 "
Department of Health,NHS Sheffield CCG,31/03/2018,C&M-GMS Prem Cost Rent,PRC DELEGATED CO-COMMISSIONING,TRAMWAYS MEDICAL CENTRE,21472533,"4,012.75 "
Department of Health,NHS Sheffield CCG,31/03/2018,C&M-GMS Prof Fees Prescribing,PRC DELEGATED CO-COMMISSIONING,TRAMWAYS MEDICAL CENTRE,21472533,357.86 
Department of Health,NHS Sheffield CCG,31/03/2018,C&M-GMS QOF Aspiration,PRC DELEGATED CO-COMMISSIONING,TRAMWAYS MEDICAL CENTRE,21472533,"6,336.58 "
Department of Health,NHS Sheffield CCG,31/03/2018,Cont Care-Funded Nursing Care Allow,FUNDED NURSING CARE,ULTIMA CARE CENTRES (NO1) LTD,21309948,"30,877.10 "
Department of Health,NHS Sheffield CCG,31/03/2018,C&M-PMS Contract Value,PRC DELEGATED CO-COMMISSIONING,UNIVERSITY HEALTH SERVICE,21222241,"168,118.49 "
Department of Health,NHS Sheffield CCG,31/03/2018,C&M-PMS Out of Hours Opt Outs,PRC DELEGATED CO-COMMISSIONING,UNIVERSITY HEALTH SERVICE,21222241,694.24 
Department of Health,NHS Sheffield CCG,31/03/2018,C&M-PMS PCO Seniority,PRC DELEGATED CO-COMMISSIONING,UNIVERSITY HEALTH SERVICE,21222241,"5,673.52 "
Department of Health,NHS Sheffield CCG,31/03/2018,C&M-PMS Prem Notional Rent,PRC DELEGATED CO-COMMISSIONING,UNIVERSITY HEALTH SERVICE,21222241,"15,833.33 "
Department of Health,NHS Sheffield CCG,31/03/2018,C&M-PMS QOF Aspiration,PRC DELEGATED CO-COMMISSIONING,UNIVERSITY HEALTH SERVICE,21222241,"3,640.26 "
Department of Health,NHS Sheffield CCG,31/03/2018,C&M-GMS Cost of Drugs -Prescribing,LOCAL ENHANCED SERVICES,UPPERTHORPE MEDICAL CENTRE,21472536,"3,566.54 "
Department of Health,NHS Sheffield CCG,31/03/2018,C&M-GMS DES Extended Hours Access,PRC DELEGATED CO-COMMISSIONING,UPPERTHORPE MEDICAL CENTRE,21472536,"5,326.65 "
Department of Health,NHS Sheffield CCG,31/03/2018,C&M-GMS Global Sum,PRC DELEGATED CO-COMMISSIONING,UPPERTHORPE MEDICAL CENTRE,21472536,"75,916.18 "
Department of Health,NHS Sheffield CCG,31/03/2018,C&M-GMS MPIG Correction Factor,PRC DELEGATED CO-COMMISSIONING,UPPERTHORPE MEDICAL CENTRE,21472536,"1,988.60 "
Department of Health,NHS Sheffield CCG,31/03/2018,C&M-GMS PCO Seniority,PRC DELEGATED CO-COMMISSIONING,UPPERTHORPE MEDICAL CENTRE,21472536,"4,287.03 "
Department of Health,NHS Sheffield CCG,31/03/2018,C&M-GMS Prem Actual Rent,PRC DELEGATED CO-COMMISSIONING,UPPERTHORPE MEDICAL CENTRE,21472536,"29,475.00 "
Department of Health,NHS Sheffield CCG,31/03/2018,C&M-GMS Prem Notional Rent,PRC DELEGATED CO-COMMISSIONING,UPPERTHORPE MEDICAL CENTRE,21472536,"2,497.83 "
Department of Health,NHS Sheffield CCG,31/03/2018,C&M-GMS Prof Fees Prescribing,PRC DELEGATED CO-COMMISSIONING,UPPERTHORPE MEDICAL CENTRE,21472536,567.72 
Department of Health,NHS Sheffield CCG,31/03/2018,C&M-GMS QOF Aspiration,PRC DELEGATED CO-COMMISSIONING,UPPERTHORPE MEDICAL CENTRE,21472536,"9,309.14 "
Department of Health,NHS Sheffield CCG,31/03/2018,C&M-PMS Contract Value,PRC DELEGATED CO-COMMISSIONING,UPWELL STREET SURGERY,21222243,"37,326.83 "
Department of Health,NHS Sheffield CCG,31/03/2018,C&M-PMS DES Learn Dsblty Hlth Chk,PRC DELEGATED CO-COMMISSIONING,UPWELL STREET SURGERY,21222243,420.00 
Department of Health,NHS Sheffield CCG,31/03/2018,C&M-PMS Funding Differential Review,PRC DELEGATED CO-COMMISSIONING,UPWELL STREET SURGERY,21222243,"2,004.50 "
Department of Health,NHS Sheffield CCG,31/03/2018,C&M-PMS Out of Hours Opt Outs,PRC DELEGATED CO-COMMISSIONING,UPWELL STREET SURGERY,21222243,74.94 
Department of Health,NHS Sheffield CCG,31/03/2018,C&M-PMS PCO Seniority,PRC DELEGATED CO-COMMISSIONING,UPWELL STREET SURGERY,21222243,"3,933.56 "
Department of Health,NHS Sheffield CCG,31/03/2018,C&M-PMS Prem Actual Rent,PRC DELEGATED CO-COMMISSIONING,UPWELL STREET SURGERY,21222243,"8,137.50 "
Department of Health,NHS Sheffield CCG,31/03/2018,C&M-PMS Prem Notional Rent,PRC DELEGATED CO-COMMISSIONING,UPWELL STREET SURGERY,21222243,"8,137.50 "
Department of Health,NHS Sheffield CCG,31/03/2018,C&M-PMS Prem Rates,PRC DELEGATED CO-COMMISSIONING,UPWELL STREET SURGERY,21222243,673.80 
Department of Health,NHS Sheffield CCG,31/03/2018,C&M-PMS QOF Aspiration,PRC DELEGATED CO-COMMISSIONING,UPWELL STREET SURGERY,21222243,"4,877.64 "
Department of Health,NHS Sheffield CCG,31/03/2018,C&M-PMS Contract Value,PRC DELEGATED CO-COMMISSIONING,VALLEY MEDICAL CENTRE,21245451,"75,530.55 "
Department of Health,NHS Sheffield CCG,31/03/2018,C&M-PMS Funding Differential Review,PRC DELEGATED CO-COMMISSIONING,VALLEY MEDICAL CENTRE,21245451,271.17 
Department of Health,NHS Sheffield CCG,31/03/2018,C&M-PMS Out of Hours Opt Outs,PRC DELEGATED CO-COMMISSIONING,VALLEY MEDICAL CENTRE,21245451,15.18 
Department of Health,NHS Sheffield CCG,31/03/2018,C&M-PMS PCO Locum Sickness,PRC DELEGATED CO-COMMISSIONING,VALLEY MEDICAL CENTRE,21245451,"4,988.89 "
Department of Health,NHS Sheffield CCG,31/03/2018,C&M-PMS PCO Seniority,PRC DELEGATED CO-COMMISSIONING,VALLEY MEDICAL CENTRE,21245451,"5,273.58 "
Department of Health,NHS Sheffield CCG,31/03/2018,C&M-PMS Prem Actual Rent,PRC DELEGATED CO-COMMISSIONING,VALLEY MEDICAL CENTRE,21245451,"26,194.66 "
Department of Health,NHS Sheffield CCG,31/03/2018,C&M-PMS QOF Aspiration,PRC DELEGATED CO-COMMISSIONING,VALLEY MEDICAL CENTRE,21245451,"9,125.55 "
Department of Health,NHS Sheffield CCG,31/03/2018,C&M-GMS Cost of Drugs -Prescribing,LOCAL ENHANCED SERVICES,WALKLEY HOUSE MEDICAL CENTRE,21472541,"1,524.70 "
Department of Health,NHS Sheffield CCG,31/03/2018,C&M-GMS Global Sum,PRC DELEGATED CO-COMMISSIONING,WALKLEY HOUSE MEDICAL CENTRE,21472541,"78,588.79 "
Department of Health,NHS Sheffield CCG,31/03/2018,C&M-GMS PCO Seniority,PRC DELEGATED CO-COMMISSIONING,WALKLEY HOUSE MEDICAL CENTRE,21472541,"5,301.29 "
Department of Health,NHS Sheffield CCG,31/03/2018,C&M-GMS Prem Notional Rent,PRC DELEGATED CO-COMMISSIONING,WALKLEY HOUSE MEDICAL CENTRE,21472541,"5,635.51 "
Department of Health,NHS Sheffield CCG,31/03/2018,C&M-GMS Prof Fees Prescribing,PRC DELEGATED CO-COMMISSIONING,WALKLEY HOUSE MEDICAL CENTRE,21472541,309.28 
Department of Health,NHS Sheffield CCG,31/03/2018,C&M-GMS QOF Aspiration,PRC DELEGATED CO-COMMISSIONING,WALKLEY HOUSE MEDICAL CENTRE,21472541,"8,922.54 "
Department of Health,NHS Sheffield CCG,31/03/2018,C&M-GMS Cost of Drugs -Prescribing,LOCAL ENHANCED SERVICES,WHITE HOUSE SURGERY SHEFFIELD,21472539,704.34 
Department of Health,NHS Sheffield CCG,31/03/2018,C&M-GMS DES Extended Hours Access,PRC DELEGATED CO-COMMISSIONING,WHITE HOUSE SURGERY SHEFFIELD,21472539,"2,994.88 "
Department of Health,NHS Sheffield CCG,31/03/2018,C&M-GMS Global Sum,PRC DELEGATED CO-COMMISSIONING,WHITE HOUSE SURGERY SHEFFIELD,21472539,"47,016.79 "
Department of Health,NHS Sheffield CCG,31/03/2018,C&M-GMS MPIG Correction Factor,PRC DELEGATED CO-COMMISSIONING,WHITE HOUSE SURGERY SHEFFIELD,21472539,"2,086.94 "
Department of Health,NHS Sheffield CCG,31/03/2018,C&M-GMS PCO Locum Adop/Pat/Mat,PRC DELEGATED CO-COMMISSIONING,WHITE HOUSE SURGERY SHEFFIELD,21472539,"12,297.43 "
Department of Health,NHS Sheffield CCG,31/03/2018,C&M-GMS PCO Seniority,PRC DELEGATED CO-COMMISSIONING,WHITE HOUSE SURGERY SHEFFIELD,21472539,"2,715.30 "
Department of Health,NHS Sheffield CCG,31/03/2018,C&M-GMS Prem Notional Rent,PRC DELEGATED CO-COMMISSIONING,WHITE HOUSE SURGERY SHEFFIELD,21472539,"9,104.17 "
Department of Health,NHS Sheffield CCG,31/03/2018,C&M-GMS Prem Water Rates,PRC DELEGATED CO-COMMISSIONING,WHITE HOUSE SURGERY SHEFFIELD,21472539,244.05 
Department of Health,NHS Sheffield CCG,31/03/2018,C&M-GMS Prof Fees Prescribing,PRC DELEGATED CO-COMMISSIONING,WHITE HOUSE SURGERY SHEFFIELD,21472539,170.08 
Department of Health,NHS Sheffield CCG,31/03/2018,C&M-GMS QOF Aspiration,PRC DELEGATED CO-COMMISSIONING,WHITE HOUSE SURGERY SHEFFIELD,21472539,"6,083.99 "
Department of Health,NHS Sheffield CCG,31/03/2018,Cont Care-Physical Disab (<65),CHC ADULT FULLY FUNDED,WILLOWBECK HEALTH CARE LTD,21226811,"146,171.62 "
Department of Health,NHS Sheffield CCG,31/03/2018,C&M-PMS Contract Value,PRC DELEGATED CO-COMMISSIONING,WINCOBANK MEDICAL CENTRE,21222248,"59,620.95 "
Department of Health,NHS Sheffield CCG,31/03/2018,C&M-PMS DES Extended Hours Access,PRC DELEGATED CO-COMMISSIONING,WINCOBANK MEDICAL CENTRE,21222248,"3,565.83 "
Department of Health,NHS Sheffield CCG,31/03/2018,C&M-PMS Funding Differential Review,PRC DELEGATED CO-COMMISSIONING,WINCOBANK MEDICAL CENTRE,21222248,9.92 
Department of Health,NHS Sheffield CCG,31/03/2018,C&M-PMS Out of Hours Opt Outs,PRC DELEGATED CO-COMMISSIONING,WINCOBANK MEDICAL CENTRE,21222248,4.87 
Department of Health,NHS Sheffield CCG,31/03/2018,C&M-PMS PCO Seniority,PRC DELEGATED CO-COMMISSIONING,WINCOBANK MEDICAL CENTRE,21222248,"2,385.36 "
Department of Health,NHS Sheffield CCG,31/03/2018,C&M-PMS Prem Healthcentre Rent,PRC DELEGATED CO-COMMISSIONING,WINCOBANK MEDICAL CENTRE,21222248,"42,475.13 "
Department of Health,NHS Sheffield CCG,31/03/2018,C&M-PMS QOF Aspiration,PRC DELEGATED CO-COMMISSIONING,WINCOBANK MEDICAL CENTRE,21222248,"6,934.01 "
Department of Health,NHS Sheffield CCG,31/03/2018,C&M-PMS Contract Value,PRC DELEGATED CO-COMMISSIONING,WOODHOUSE HEALTH CENTRE,21222245,(380.80)
Department of Health,NHS Sheffield CCG,31/03/2018,C&M-PMS GP Statutory Levy,PRC DELEGATED CO-COMMISSIONING,WOODHOUSE HEALTH CENTRE,21222245,(365.67)
Department of Health,NHS Sheffield CCG,31/03/2018,C&M-PMS Out of Hours Opt Outs,PRC DELEGATED CO-COMMISSIONING,WOODHOUSE HEALTH CENTRE,21222245,"(4,535.70)"
Department of Health,NHS Sheffield CCG,31/03/2018,C&M-PMS Voluntary Levy,PRC DELEGATED CO-COMMISSIONING,WOODHOUSE HEALTH CENTRE,21222245,(60.95)
Department of Health,NHS Sheffield CCG,31/03/2018,C&M-PMS Contract Value,PRC DELEGATED CO-COMMISSIONING,WOODHOUSE HEALTH CENTRE,21222246,"96,169.70 "
Department of Health,NHS Sheffield CCG,31/03/2018,C&M-PMS DES Extended Hours Access,PRC DELEGATED CO-COMMISSIONING,WOODHOUSE HEALTH CENTRE,21222246,"5,784.08 "
Department of Health,NHS Sheffield CCG,31/03/2018,C&M-PMS Funding Differential Review,PRC DELEGATED CO-COMMISSIONING,WOODHOUSE HEALTH CENTRE,21222246,"2,776.33 "
Department of Health,NHS Sheffield CCG,31/03/2018,C&M-PMS Out of Hours Opt Outs,PRC DELEGATED CO-COMMISSIONING,WOODHOUSE HEALTH CENTRE,21222246,19.37 
Department of Health,NHS Sheffield CCG,31/03/2018,C&M-PMS PCO Seniority,PRC DELEGATED CO-COMMISSIONING,WOODHOUSE HEALTH CENTRE,21222246,"7,507.05 "
Department of Health,NHS Sheffield CCG,31/03/2018,C&M-PMS Prem Notional Rent,PRC DELEGATED CO-COMMISSIONING,WOODHOUSE HEALTH CENTRE,21222246,"6,338.58 "
Department of Health,NHS Sheffield CCG,31/03/2018,C&M-PMS Prem Water Rates,PRC DELEGATED CO-COMMISSIONING,WOODHOUSE HEALTH CENTRE,21222246,207.46 
Department of Health,NHS Sheffield CCG,31/03/2018,C&M-PMS QOF Aspiration,PRC DELEGATED CO-COMMISSIONING,WOODHOUSE HEALTH CENTRE,21222246,"14,743.27 "
Department of Health,NHS Sheffield CCG,31/03/2018,C&M-PMS Contract Value,PRC DELEGATED CO-COMMISSIONING,WOODSEATS MEDICAL CENTRE,21222874,"68,538.92 "
Department of Health,NHS Sheffield CCG,31/03/2018,C&M-PMS DES Extended Hours Access,PRC DELEGATED CO-COMMISSIONING,WOODSEATS MEDICAL CENTRE,21222874,"4,329.15 "
Department of Health,NHS Sheffield CCG,31/03/2018,C&M-PMS Funding Differential Review,PRC DELEGATED CO-COMMISSIONING,WOODSEATS MEDICAL CENTRE,21222874,397.08 
Department of Health,NHS Sheffield CCG,31/03/2018,C&M-PMS PCO Seniority,PRC DELEGATED CO-COMMISSIONING,WOODSEATS MEDICAL CENTRE,21222874,"2,893.25 "
Department of Health,NHS Sheffield CCG,31/03/2018,C&M-PMS Prem Notional Rent,PRC DELEGATED CO-COMMISSIONING,WOODSEATS MEDICAL CENTRE,21222874,"11,666.42 "
Department of Health,NHS Sheffield CCG,31/03/2018,C&M-PMS Prem Rates,PRC DELEGATED CO-COMMISSIONING,WOODSEATS MEDICAL CENTRE,21222874,"17,997.93 "
Department of Health,NHS Sheffield CCG,31/03/2018,C&M-PMS QOF Aspiration,PRC DELEGATED CO-COMMISSIONING,WOODSEATS MEDICAL CENTRE,21222874,"8,124.33 "
Department of Health,NHS Sheffield CCG,31/03/2018,Hcare Srv Rec NHS Trust-CQUIN,AMBULANCE SERVICES,YORKSHIRE AMBULANCE SERVICE NHS TRUST,21166143,"27,566.00 "
Department of Health,NHS Sheffield CCG,31/03/2018,Hcare Srv Rec NHS Trust-Contract Baseline,PATIENT TRANSPORT,YORKSHIRE AMBULANCE SERVICE NHS TRUST,21166145,"255,744.52 "
Department of Health,NHS Sheffield CCG,31/03/2018,Hcare Srv Rec NHS Trust-Contract Baseline,AMBULANCE SERVICES,YORKSHIRE AMBULANCE SERVICE NHS TRUST,21166148,"123,979.00 "
Department of Health,NHS Sheffield CCG,31/03/2018,Hcare Srv Rec NHS Trust-Contract Baseline,NHS 111,YORKSHIRE AMBULANCE SERVICE NHS TRUST,21166150,"98,607.99 "
Department of Health,NHS Sheffield CCG,31/03/2018,Hcare Srv Rec NHS Trust-Contract Baseline,AMBULANCE SERVICES,YORKSHIRE AMBULANCE SERVICE NHS TRUST,21166158,"1,440,139.00 "
